Publisher Label,Publisher URI,"Supplier","Net Amount £","Organisational Unit","Merchant Category Code","Purpose","Payment Date"
"Wolverhampton City Council","http://opendatacommunities.org/id/metropolitan-district-council/wolverhampton","ASDA GROCERIES ONLINE","-2.26","-","5411","Provisions (Not for resale)","28/02/2019"
"Wolverhampton City Council","http://opendatacommunities.org/id/metropolitan-district-council/wolverhampton","ASDA STORE 4753","3.49","Bradley Resource Centre","5411","Provisions (Not for resale)","28/02/2019"
"Wolverhampton City Council","http://opendatacommunities.org/id/metropolitan-district-council/wolverhampton","ASDA GROCERIES ONLINE","61.56","Bradley Resource Centre","5411","Provisions (Not for resale)","28/02/2019"
"Wolverhampton City Council","http://opendatacommunities.org/id/metropolitan-district-council/wolverhampton","AMZN Mktp UK MW09V94H4","131.96","Outreach","5942","Equipment - Purchase","28/02/2019"
"Wolverhampton City Council","http://opendatacommunities.org/id/metropolitan-district-council/wolverhampton","AMZN Mktp UK MW6J36F04","42.37","Outreach","5942","Equipment - Purchase","28/02/2019"
"Wolverhampton City Council","http://opendatacommunities.org/id/metropolitan-district-council/wolverhampton","AMZN Mktp UK MW5JB2FY4","81.40","Outreach","5942","Books","28/02/2019"
"Wolverhampton City Council","http://opendatacommunities.org/id/metropolitan-district-council/wolverhampton","AMZN Mktp UK MW23O9F44","10.82","Outreach","5942","Equipment - Purchase","28/02/2019"
"Wolverhampton City Council","http://opendatacommunities.org/id/metropolitan-district-council/wolverhampton","AMZN Mktp UK MW15C3FW4","15.94","Outreach","5942","Books","28/02/2019"
"Wolverhampton City Council","http://opendatacommunities.org/id/metropolitan-district-council/wolverhampton","AMZN Mktp UK MW1C64F14","119.98","Outreach","5942","Equipment - Purchase","28/02/2019"
"Wolverhampton City Council","http://opendatacommunities.org/id/metropolitan-district-council/wolverhampton","Cross Country Trains","108.80","Court Team","4112","Public Transport","28/02/2019"
"Wolverhampton City Council","http://opendatacommunities.org/id/metropolitan-district-council/wolverhampton","Cross Country Trains","4.90","Court Team","4112","Public Transport","28/02/2019"
"Wolverhampton City Council","http://opendatacommunities.org/id/metropolitan-district-council/wolverhampton","NATWEST BANK","200.00","CAT","6011","No Recourse to Public Funds","28/02/2019"
"Wolverhampton City Council","http://opendatacommunities.org/id/metropolitan-district-council/wolverhampton","STAGECOACH SERVICE","16.95","Court Team","4131","Public Transport","28/02/2019"
"Wolverhampton City Council","http://opendatacommunities.org/id/metropolitan-district-council/wolverhampton","WWW.ARGOS.CO.UK","133.94","Bradley Resource Centre","5310","Equipment - Purchase","28/02/2019"
"Wolverhampton City Council","http://opendatacommunities.org/id/metropolitan-district-council/wolverhampton","WWW.NISBETS.COM","290.17","Mayoral Expenses","5964","Hospitality","28/02/2019"
"Wolverhampton City Council","http://opendatacommunities.org/id/metropolitan-district-council/wolverhampton","LOYD 37 CHURCH STREET","200.00","EIP Locality 8","6011","Grant Payments","28/02/2019"
"Wolverhampton City Council","http://opendatacommunities.org/id/metropolitan-district-council/wolverhampton","TESCO STORES 6161","13.08","LAC Transitions Team","5411","Client Allowances","28/02/2019"
"Wolverhampton City Council","http://opendatacommunities.org/id/metropolitan-district-council/wolverhampton","TESCO STORES 6161","153.97","LAC Transitions Team","5411","Client Allowances","28/02/2019"
"Wolverhampton City Council","http://opendatacommunities.org/id/metropolitan-district-council/wolverhampton","HOMEZONE","13.31","LAC Transitions Team","5211","Client Allowances","28/02/2019"
"Wolverhampton City Council","http://opendatacommunities.org/id/metropolitan-district-council/wolverhampton","ROYAL BK OF SCOTLAND","250.00","CIN/CP Social Work Unit - Area 6","6011","Section 17","28/02/2019"
"Wolverhampton City Council","http://opendatacommunities.org/id/metropolitan-district-council/wolverhampton","COMBINED COURT","170.00","LAC Team","9222","Services - Fees and Charges","28/02/2019"
"Wolverhampton City Council","http://opendatacommunities.org/id/metropolitan-district-council/wolverhampton","AMZN Mktp UK MW30T7OE4","10.68","Adoption and Residence Team & Allowances","5942","Stationery","28/02/2019"
"Wolverhampton City Council","http://opendatacommunities.org/id/metropolitan-district-council/wolverhampton","000002200500000","250.00","CIN/CP Social Work Unit - Area 6","6011","Financial Assistance In Exceptional Circ","28/02/2019"
"Wolverhampton City Council","http://opendatacommunities.org/id/metropolitan-district-council/wolverhampton","Amazon.co.uk MW83Z8FY4","29.16","Education And Access","5969","Marketing \ Non-staff advertising","28/02/2019"
"Wolverhampton City Council","http://opendatacommunities.org/id/metropolitan-district-council/wolverhampton","WWW.TECHNOGYM.COM","24.83","Aldersley Leisure Village","5941","Equipment - Purchase","28/02/2019"
"Wolverhampton City Council","http://opendatacommunities.org/id/metropolitan-district-council/wolverhampton","ROTOWASH LTD","19.85","Aldersley Leisure Village","5046","Equipment - Purchase","28/02/2019"
"Wolverhampton City Council","http://opendatacommunities.org/id/metropolitan-district-council/wolverhampton","WWW.FLOORMART.CO.UK","184.06","Aldersley Leisure Village","5713","Equipment - Purchase","28/02/2019"
"Wolverhampton City Council","http://opendatacommunities.org/id/metropolitan-district-council/wolverhampton","WP-CENTRAL TAXIS L","-110.65","Fostering Team & Allowances","4121","Client Transport","28/02/2019"
"Wolverhampton City Council","http://opendatacommunities.org/id/metropolitan-district-council/wolverhampton","WP-CENTRAL TAXIS L","221.25","Fostering Team & Allowances","4121","Client Transport","28/02/2019"
"Wolverhampton City Council","http://opendatacommunities.org/id/metropolitan-district-council/wolverhampton","EB  WORKSHOP ESSENTIAL","206.22","Communications & Marketing - General","7399","Equipment - Purchase","28/02/2019"
"Wolverhampton City Council","http://opendatacommunities.org/id/metropolitan-district-council/wolverhampton","WM MORRISONS STORE","11.80","Bert Williams Leisure Centre","5411","Provisions (Not for resale)","28/02/2019"
"Wolverhampton City Council","http://opendatacommunities.org/id/metropolitan-district-council/wolverhampton","Training","170.00","Youth Offending Team","7399","Training Expenses","28/02/2019"
"Wolverhampton City Council","http://opendatacommunities.org/id/metropolitan-district-council/wolverhampton","TFL TRAVEL CH","4.80","Managing Director","4111","Public Transport","28/02/2019"
"Wolverhampton City Council","http://opendatacommunities.org/id/metropolitan-district-council/wolverhampton","AMZN Mktp UK MW8IM8F74","22.21","Central Baths","5942","Books","28/02/2019"
"Wolverhampton City Council","http://opendatacommunities.org/id/metropolitan-district-council/wolverhampton","PREMIER INN","88.50","LAC Team","3811","Services - Supplies & Services to users","28/02/2019"
"Wolverhampton City Council","http://opendatacommunities.org/id/metropolitan-district-council/wolverhampton","PEARSON ED LTD","220.80","Language Studies Delivery Area","8299","Exam Expenses (Non-Employee)","28/02/2019"
"Wolverhampton City Council","http://opendatacommunities.org/id/metropolitan-district-council/wolverhampton","Amazon.co.uk MW1PF0F04","115.00","Foundation Studies","5969","Equipment - Purchase","28/02/2019"
"Wolverhampton City Council","http://opendatacommunities.org/id/metropolitan-district-council/wolverhampton","WWW.MAILCOMS.CO.UK","30.00","Business Support Services","5734","Comms - Postage","28/02/2019"
"Wolverhampton City Council","http://opendatacommunities.org/id/metropolitan-district-council/wolverhampton","THE ROWTON HOTEL","62.00","CIN/CP Social Work Unit - Area 7","7011","Section 17","28/02/2019"
"Wolverhampton City Council","http://opendatacommunities.org/id/metropolitan-district-council/wolverhampton","SCREWFIX DIRECT LT","34.95","Culwell Street Depot","5211","Materials","28/02/2019"
"Wolverhampton City Council","http://opendatacommunities.org/id/metropolitan-district-council/wolverhampton","B & Q 1243","67.50","Culwell Street Depot","5211","Equipment - Purchase","28/02/2019"
"Wolverhampton City Council","http://opendatacommunities.org/id/metropolitan-district-council/wolverhampton","Virgin Trains","46.00","LAC Team","4112","Public Transport","28/02/2019"
"Wolverhampton City Council","http://opendatacommunities.org/id/metropolitan-district-council/wolverhampton","AMZN Mktp UK MW7Z33F94","333.25","Community Recreation","5942","Furniture","28/02/2019"
"Wolverhampton City Council","http://opendatacommunities.org/id/metropolitan-district-council/wolverhampton","AMZN Mktp UK MW5AK84G4","30.83","Community Recreation","5942","Furniture","28/02/2019"
"Wolverhampton City Council","http://opendatacommunities.org/id/metropolitan-district-council/wolverhampton","AMZN MKTP UK MW0DW9FA4","303.10","Community Recreation","5942","Furniture","28/02/2019"
"Wolverhampton City Council","http://opendatacommunities.org/id/metropolitan-district-council/wolverhampton","Amazon.co.uk MW1CH5FD4","387.47","Community Recreation","5969","Furniture","28/02/2019"
"Wolverhampton City Council","http://opendatacommunities.org/id/metropolitan-district-council/wolverhampton","FACEBK QKCUZKNAM2","17.00","Education And Access","7311","Marketing \ Non-staff advertising","28/02/2019"
"Wolverhampton City Council","http://opendatacommunities.org/id/metropolitan-district-council/wolverhampton","WP-CENTRAL TAXIS L","-132.78","LAC Team","4121","Client Transport","28/02/2019"
"Wolverhampton City Council","http://opendatacommunities.org/id/metropolitan-district-council/wolverhampton","HM PASSPORT OFFICE","58.50","LAC Team","9399","Financial Assistance In Exceptional Circ","28/02/2019"
"Wolverhampton City Council","http://opendatacommunities.org/id/metropolitan-district-council/wolverhampton","WP-CENTRAL TAXIS L","265.50","LAC Team","4121","Client Transport","28/02/2019"
"Wolverhampton City Council","http://opendatacommunities.org/id/metropolitan-district-council/wolverhampton","Virgin Trains","110.00","Scrutiny & Transparency","4112","Public Transport","28/02/2019"
"Wolverhampton City Council","http://opendatacommunities.org/id/metropolitan-district-council/wolverhampton","AMZN Mktp UK MW9EH8F64","54.48","Trading Standards","5942","Equipment - Purchase","28/02/2019"
"Wolverhampton City Council","http://opendatacommunities.org/id/metropolitan-district-council/wolverhampton","AMZN Mktp UK MW2HH8FV4","39.58","Environmental Crime and Consumer Protect","5942","Equipment - Purchase","28/02/2019"
"Wolverhampton City Council","http://opendatacommunities.org/id/metropolitan-district-council/wolverhampton","WWW.ARGOS.CO.UK","236.95","Learning Disabilities Management","5310","Equipment - Purchase","28/02/2019"
"Wolverhampton City Council","http://opendatacommunities.org/id/metropolitan-district-council/wolverhampton","MBL SEMINARS","99.00","Central Training","8299","Training Expenses","28/02/2019"
"Wolverhampton City Council","http://opendatacommunities.org/id/metropolitan-district-council/wolverhampton","CITY OF WOLVERHAMPTON","27.00","Head of Service - CINCP","9399","Services - Professional Fees","28/02/2019"
"Wolverhampton City Council","http://opendatacommunities.org/id/metropolitan-district-council/wolverhampton","THE COAL AUTHORITY","39.92","Disposal Costs","9399","Services - Professional Fees","28/02/2019"
"Wolverhampton City Council","http://opendatacommunities.org/id/metropolitan-district-council/wolverhampton","PRESTWOOD PETZONE","14.56","Children & Family Contact Services","5995","Equipment - Purchase","28/02/2019"
"Wolverhampton City Council","http://opendatacommunities.org/id/metropolitan-district-council/wolverhampton","J VAN VLIET BIRMINGHAM","189.20","Creative Studies Delivery Area","5399","Materials for resale","28/02/2019"
"Wolverhampton City Council","http://opendatacommunities.org/id/metropolitan-district-council/wolverhampton","GEN REGISTER OFFICE","-7.50","LAC Transitions Team","9399","Client Allowances","28/02/2019"
"Wolverhampton City Council","http://opendatacommunities.org/id/metropolitan-district-council/wolverhampton","Trainline","111.16","LAC Transitions Team","4112","Public Transport","27/02/2019"
"Wolverhampton City Council","http://opendatacommunities.org/id/metropolitan-district-council/wolverhampton","WOLVERHAMPTON T/O","11.30","Mayoral Expenses","4112","Public Transport","27/02/2019"
"Wolverhampton City Council","http://opendatacommunities.org/id/metropolitan-district-council/wolverhampton","Virgin Trains","75.60","Director of Education","4112","Public Transport","27/02/2019"
"Wolverhampton City Council","http://opendatacommunities.org/id/metropolitan-district-council/wolverhampton","WM MORRISON FOOD.COM","88.31","Discretionary Fund","5411","Materials","27/02/2019"
"Wolverhampton City Council","http://opendatacommunities.org/id/metropolitan-district-council/wolverhampton","AMZN Mktp UK MW0059OS4","39.90","Outreach","5942","Equipment - Purchase","27/02/2019"
"Wolverhampton City Council","http://opendatacommunities.org/id/metropolitan-district-council/wolverhampton","AMZN Mktp UK MW3VO2ON4","13.26","Outreach","5942","Equipment - Purchase","27/02/2019"
"Wolverhampton City Council","http://opendatacommunities.org/id/metropolitan-district-council/wolverhampton","AMZN Mktp UK MW7935CV4","27.92","Outreach","5942","Equipment - Purchase","27/02/2019"
"Wolverhampton City Council","http://opendatacommunities.org/id/metropolitan-district-council/wolverhampton","AMZN Mktp UK MW6HJ2CM4","14.95","Outreach","5942","Equipment - Purchase","27/02/2019"
"Wolverhampton City Council","http://opendatacommunities.org/id/metropolitan-district-council/wolverhampton","AMZN Mktp UK MW0HD7CI4","6.33","Outreach","5942","Equipment - Purchase","27/02/2019"
"Wolverhampton City Council","http://opendatacommunities.org/id/metropolitan-district-council/wolverhampton","AMZN Mktp UK MI2F28YE4","34.12","Outreach","5942","Equipment - Purchase","27/02/2019"
"Wolverhampton City Council","http://opendatacommunities.org/id/metropolitan-district-council/wolverhampton","ETR TICKETS gotogate_u","220.78","CAT","4722","Client Transport","27/02/2019"
"Wolverhampton City Council","http://opendatacommunities.org/id/metropolitan-district-council/wolverhampton","WIZZ AIR  R72MXL","167.98","CAT","4511","Public Transport","27/02/2019"
"Wolverhampton City Council","http://opendatacommunities.org/id/metropolitan-district-council/wolverhampton","EXPEDIA 7415296794808","80.01","CAT","4722","Public Transport","27/02/2019"
"Wolverhampton City Council","http://opendatacommunities.org/id/metropolitan-district-council/wolverhampton","NATWEST BANK","200.00","CAT","6011","No Recourse to Public Funds","27/02/2019"
"Wolverhampton City Council","http://opendatacommunities.org/id/metropolitan-district-council/wolverhampton","POST OFFICE COUNTER","7.30","Adoption and Residence Team & Allowances","9402","Comms - Postage","27/02/2019"
"Wolverhampton City Council","http://opendatacommunities.org/id/metropolitan-district-council/wolverhampton","AMZN Mktp UK MW6ZY1CU4","13.50","Education And Access","5942","Materials","27/02/2019"
"Wolverhampton City Council","http://opendatacommunities.org/id/metropolitan-district-council/wolverhampton","WP-CENTRAL TAXIS L","-104.00","Fostering Team & Allowances","4121","Client Transport","27/02/2019"
"Wolverhampton City Council","http://opendatacommunities.org/id/metropolitan-district-council/wolverhampton","AMZN Mktp UK MI9BP5YE4","22.42","Education And Access","5942","Materials","27/02/2019"
"Wolverhampton City Council","http://opendatacommunities.org/id/metropolitan-district-council/wolverhampton","STAMPS4U.CO.UK","25.90","WV Active Marketing","5734","Computing - Purchase of Software","27/02/2019"
"Wolverhampton City Council","http://opendatacommunities.org/id/metropolitan-district-council/wolverhampton","TROPHIESPLUSMEDALS.CO.","538.11","Corporate Parenting","5999","Equipment - Purchase","27/02/2019"
"Wolverhampton City Council","http://opendatacommunities.org/id/metropolitan-district-council/wolverhampton","INTERFLORA BRITISH UNI","34.17","Fostering Team & Allowances","5992","Equipment - Purchase","27/02/2019"
"Wolverhampton City Council","http://opendatacommunities.org/id/metropolitan-district-council/wolverhampton","ASDA SUPERSTORE","21.21","Youth Offending Team","5411","Provisions (Not for resale)","27/02/2019"
"Wolverhampton City Council","http://opendatacommunities.org/id/metropolitan-district-council/wolverhampton","Trainline","124.01","LAC Transitions Team","4112","Client Allowances","27/02/2019"
"Wolverhampton City Council","http://opendatacommunities.org/id/metropolitan-district-council/wolverhampton","AMZN MKTP UK MI34Z1Y74","44.11","Upper Pendeford Farm Childrens Home","5942","Books","27/02/2019"
"Wolverhampton City Council","http://opendatacommunities.org/id/metropolitan-district-council/wolverhampton","AMZN MKTP UK MI2EO5Y24","17.74","Upper Pendeford Farm Childrens Home","5942","Books","27/02/2019"
"Wolverhampton City Council","http://opendatacommunities.org/id/metropolitan-district-council/wolverhampton","PREMIER INN 44536525","-84.50","LAC Team","5812","Services - Supplies & Services to users","27/02/2019"
"Wolverhampton City Council","http://opendatacommunities.org/id/metropolitan-district-council/wolverhampton","WWW.WOLVERHAMPTON.GOV.","200.00","LAC Transitions Team","9399","Client Allowances","27/02/2019"
"Wolverhampton City Council","http://opendatacommunities.org/id/metropolitan-district-council/wolverhampton","WWW.HOBBYCRAFT.CO.UK","29.17","Headstart - Employability","5970","Materials","27/02/2019"
"Wolverhampton City Council","http://opendatacommunities.org/id/metropolitan-district-council/wolverhampton","POST OFFICE COUNTER","204.00","Connexions Contract","9402","Comms - Postage","27/02/2019"
"Wolverhampton City Council","http://opendatacommunities.org/id/metropolitan-district-council/wolverhampton","ASDAN","99.10","LAC Transitions Team","8299","Accommodation Costs","27/02/2019"
"Wolverhampton City Council","http://opendatacommunities.org/id/metropolitan-district-council/wolverhampton","EB  TEDXWOLVERHAMPTON","27.24","Carers Support","7399","Events","27/02/2019"
"Wolverhampton City Council","http://opendatacommunities.org/id/metropolitan-district-council/wolverhampton","IDC WRISTBANDS","43.02","Technical Support","5699","Equipment - Purchase","27/02/2019"
"Wolverhampton City Council","http://opendatacommunities.org/id/metropolitan-district-council/wolverhampton","AMZN MKTP UK MW75V8CE4","143.17","Global Budgets","5942","Equipment - Purchase","27/02/2019"
"Wolverhampton City Council","http://opendatacommunities.org/id/metropolitan-district-council/wolverhampton","WWW.WOLVERHAMPTON.GOV.","500.00","LAC Transitions Team","9399","Accommodation Costs","27/02/2019"
"Wolverhampton City Council","http://opendatacommunities.org/id/metropolitan-district-council/wolverhampton","WICKES WOLVERHAMPTON","53.33","Learning Disabilities Management","5211","Equipment - Purchase","27/02/2019"
"Wolverhampton City Council","http://opendatacommunities.org/id/metropolitan-district-council/wolverhampton","Amazon.co.uk MW1AQ4OW4","20.82","Parking Enforcement","5969","Equipment - Purchase","27/02/2019"
"Wolverhampton City Council","http://opendatacommunities.org/id/metropolitan-district-council/wolverhampton","BASPCAN, YORK","85.00","Workforce Development","8398","Training Expenses","27/02/2019"
"Wolverhampton City Council","http://opendatacommunities.org/id/metropolitan-district-council/wolverhampton","PAYPAL  RTPI","60.00","Central Training","8398","Training Expenses","27/02/2019"
"Wolverhampton City Council","http://opendatacommunities.org/id/metropolitan-district-council/wolverhampton","Trainline","132.53","Inclusion Support","4112","Public Transport","27/02/2019"
"Wolverhampton City Council","http://opendatacommunities.org/id/metropolitan-district-council/wolverhampton","HM PASSPORT OFFICE","70.83","LAC Transitions Team","9399","Client Allowances","27/02/2019"
"Wolverhampton City Council","http://opendatacommunities.org/id/metropolitan-district-council/wolverhampton","HM PASSPORT OFFICE","70.83","LAC Transitions Team","9399","Client Allowances","27/02/2019"
"Wolverhampton City Council","http://opendatacommunities.org/id/metropolitan-district-council/wolverhampton","GEN REGISTER OFFICE","25.00","LAC Transitions Team","9399","Client Allowances","27/02/2019"
"Wolverhampton City Council","http://opendatacommunities.org/id/metropolitan-district-council/wolverhampton","ASDA GROCERIES ONLINE","-1.00","-","5411","Provisions (Not for resale)","26/02/2019"
"Wolverhampton City Council","http://opendatacommunities.org/id/metropolitan-district-council/wolverhampton","ASDA GROCERIES ONLINE","67.28","Bradley Resource Centre","5411","Provisions (Not for resale)","26/02/2019"
"Wolverhampton City Council","http://opendatacommunities.org/id/metropolitan-district-council/wolverhampton","TVLICENSING.CO.UK","150.50","LAC Transitions Team","7392","Client Allowances","26/02/2019"
"Wolverhampton City Council","http://opendatacommunities.org/id/metropolitan-district-council/wolverhampton","Trainline","49.40","Revenues","4112","Public Transport","26/02/2019"
"Wolverhampton City Council","http://opendatacommunities.org/id/metropolitan-district-council/wolverhampton","Amazon.co.uk MI9Q04YV4","5.24","Outreach","5969","Books","26/02/2019"
"Wolverhampton City Council","http://opendatacommunities.org/id/metropolitan-district-council/wolverhampton","ARGOS LTD","12.49","Passenger Transport - General","5310","Equipment - Purchase","26/02/2019"
"Wolverhampton City Council","http://opendatacommunities.org/id/metropolitan-district-council/wolverhampton","Amazon.co.uk MW2OG1CC4","6.41","Outreach","5969","Books","26/02/2019"
"Wolverhampton City Council","http://opendatacommunities.org/id/metropolitan-district-council/wolverhampton","AMZN Mktp UK MW4132CU4","18.01","Outreach","5942","Books","26/02/2019"
"Wolverhampton City Council","http://opendatacommunities.org/id/metropolitan-district-council/wolverhampton","AMZN Mktp UK MI9KZ7YW4","23.38","Outreach","5942","Equipment - Purchase","26/02/2019"
"Wolverhampton City Council","http://opendatacommunities.org/id/metropolitan-district-council/wolverhampton","000002200500000","100.00","Childrens with Disabilities Team","6011","Financial Assistance In Exceptional Circ","26/02/2019"
"Wolverhampton City Council","http://opendatacommunities.org/id/metropolitan-district-council/wolverhampton","000002200500000","250.00","Childrens with Disabilities Team","6011","Financial Assistance In Exceptional Circ","26/02/2019"
"Wolverhampton City Council","http://opendatacommunities.org/id/metropolitan-district-council/wolverhampton","GWYNEDD SKIP & PLANT H","200.00","Towers Outdoor Education Centre","7394","Fixtures and Fittings - Purchases","26/02/2019"
"Wolverhampton City Council","http://opendatacommunities.org/id/metropolitan-district-council/wolverhampton","Virgin Trains","182.00","Fostering Team & Allowances","4112","Public Transport","26/02/2019"
"Wolverhampton City Council","http://opendatacommunities.org/id/metropolitan-district-council/wolverhampton","GOOGLE  ADS9680351324","500.00","Communications & Marketing - General","5968","Subscriptions","26/02/2019"
"Wolverhampton City Council","http://opendatacommunities.org/id/metropolitan-district-council/wolverhampton","WWW.NISBETS.COM","344.08","Mayoral Expenses","5964","Equipment - Purchase","26/02/2019"
"Wolverhampton City Council","http://opendatacommunities.org/id/metropolitan-district-council/wolverhampton","CURRYS ONLINE","299.00","Pupil Premium","5732","Equipment - Purchase","26/02/2019"
"Wolverhampton City Council","http://opendatacommunities.org/id/metropolitan-district-council/wolverhampton","Trainline","40.60","Youth Offending Team","4112","Public Transport","26/02/2019"
"Wolverhampton City Council","http://opendatacommunities.org/id/metropolitan-district-council/wolverhampton","CURRYS S/S","59.99","Strategic ICTS (ICT Serv Budget)","5732","Equipment - Purchase","26/02/2019"
"Wolverhampton City Council","http://opendatacommunities.org/id/metropolitan-district-council/wolverhampton","WICKES BUILDING","21.67","Central Baths","5211","Materials","26/02/2019"
"Wolverhampton City Council","http://opendatacommunities.org/id/metropolitan-district-council/wolverhampton","WWW.SMYTHSTOYS.COM","19.99","CIN/CP Social Work Unit - Area 4","5945","Section 17","26/02/2019"
"Wolverhampton City Council","http://opendatacommunities.org/id/metropolitan-district-council/wolverhampton","COSMO","154.82","Upper Pendeford Farm Childrens Home","5812","Educ Trips, Holidays, Outings, Activity","26/02/2019"
"Wolverhampton City Council","http://opendatacommunities.org/id/metropolitan-district-council/wolverhampton","ASDA GROCERIES ONLINE","-1.38","Creative Studies Delivery Area","5411","Provisions (Not for resale)","26/02/2019"
"Wolverhampton City Council","http://opendatacommunities.org/id/metropolitan-district-council/wolverhampton","WWW.ARGOS.CO.UK","23.95","Business Support Services","5310","Equipment - Purchase","26/02/2019"
"Wolverhampton City Council","http://opendatacommunities.org/id/metropolitan-district-council/wolverhampton","SCAN COMPUTERS INT LTD","114.99","LAC Transitions Team","5732","Equipment - Purchase","26/02/2019"
"Wolverhampton City Council","http://opendatacommunities.org/id/metropolitan-district-council/wolverhampton","SCREWFIX DIRECT","99.08","Service Wide","5211","Equipment - Purchase","26/02/2019"
"Wolverhampton City Council","http://opendatacommunities.org/id/metropolitan-district-council/wolverhampton","ASDA GROCERIES ONLINE","31.08","Creative Studies Delivery Area","5411","Provisions (Not for resale)","26/02/2019"
"Wolverhampton City Council","http://opendatacommunities.org/id/metropolitan-district-council/wolverhampton","WWW.COMPUTINGPLUS.CO.U","32.00","Business Support Services","7372","Equipment - Purchase","26/02/2019"
"Wolverhampton City Council","http://opendatacommunities.org/id/metropolitan-district-council/wolverhampton","AMZN Mktp UK MI9V99Y14","259.00","Work Related Studies","5942","Equipment - Purchase","26/02/2019"
"Wolverhampton City Council","http://opendatacommunities.org/id/metropolitan-district-council/wolverhampton","HOME & MOTORSAVE LIMIT","23.11","LAC Transitions Team","5039","Client Allowances","26/02/2019"
"Wolverhampton City Council","http://opendatacommunities.org/id/metropolitan-district-council/wolverhampton","CO-OP MOBILITY","19.44","Ernest Bold Court","5047","Provisions (Not for resale)","26/02/2019"
"Wolverhampton City Council","http://opendatacommunities.org/id/metropolitan-district-council/wolverhampton","Trainline","9.92","CIN/CP Social Work Unit - Area 8","4112","Section 17","26/02/2019"
"Wolverhampton City Council","http://opendatacommunities.org/id/metropolitan-district-council/wolverhampton","WWW.ARGOS.CO.UK","589.12","Learning Disabilities Management","5310","Equipment - Purchase","26/02/2019"
"Wolverhampton City Council","http://opendatacommunities.org/id/metropolitan-district-council/wolverhampton","CARD FACTORY","2.36","Children & Young People Support Costs","5947","Equipment - Purchase","26/02/2019"
"Wolverhampton City Council","http://opendatacommunities.org/id/metropolitan-district-council/wolverhampton","123-REG.CO.UK","137.88","Technical Support","4816","Computing - Purchase of Software","26/02/2019"
"Wolverhampton City Council","http://opendatacommunities.org/id/metropolitan-district-council/wolverhampton","AMZN MKTP UK MI4026RL4","28.48","LAC Team","5942","Services - Supplies & Services to users","26/02/2019"
"Wolverhampton City Council","http://opendatacommunities.org/id/metropolitan-district-council/wolverhampton","ASDA GROCERIES ONLINE","47.65","Ernest Bold Court","5411","Provisions (Not for resale)","26/02/2019"
"Wolverhampton City Council","http://opendatacommunities.org/id/metropolitan-district-council/wolverhampton","WWW.ARGOS.CO.UK","-130.79","Learning Disabilities Management","5310","Equipment - Purchase","26/02/2019"
"Wolverhampton City Council","http://opendatacommunities.org/id/metropolitan-district-council/wolverhampton","WWW.ARGOS.CO.UK","246.61","Learning Disabilities Management","5310","Equipment - Purchase","26/02/2019"
"Wolverhampton City Council","http://opendatacommunities.org/id/metropolitan-district-council/wolverhampton","WWW.ARGOS.CO.UK","130.79","Learning Disabilities Management","5310","Equipment - Purchase","26/02/2019"
"Wolverhampton City Council","http://opendatacommunities.org/id/metropolitan-district-council/wolverhampton","WWW.ARGOS.CO.UK","130.79","Learning Disabilities Management","5310","Equipment - Purchase","26/02/2019"
"Wolverhampton City Council","http://opendatacommunities.org/id/metropolitan-district-council/wolverhampton","WWW.ARGOS.CO.UK","130.79","Learning Disabilities Management","5310","Equipment - Purchase","26/02/2019"
"Wolverhampton City Council","http://opendatacommunities.org/id/metropolitan-district-council/wolverhampton","AMZN Mktp UK MW18K3CZ4","24.95","Management of Vacant Properties","5942","Materials","26/02/2019"
"Wolverhampton City Council","http://opendatacommunities.org/id/metropolitan-district-council/wolverhampton","GEN REGISTER OFFICE","15.00","LAC Transitions Team","9399","Client Allowances","26/02/2019"
"Wolverhampton City Council","http://opendatacommunities.org/id/metropolitan-district-council/wolverhampton","CUMMINGS BROTHERS LOCK","4.17","Adult Services - East","7399","Equipment - Purchase","26/02/2019"
"Wolverhampton City Council","http://opendatacommunities.org/id/metropolitan-district-council/wolverhampton","THE MOBILE SINK COMPAN","85.00","Northicote Farm","7399","Equipment - Hire","26/02/2019"
"Wolverhampton City Council","http://opendatacommunities.org/id/metropolitan-district-council/wolverhampton","BLACK COUNTRY SKIP HIR","220.00","Northicote Farm","7394","Equipment - Hire","26/02/2019"
"Wolverhampton City Council","http://opendatacommunities.org/id/metropolitan-district-council/wolverhampton","WWW.ARGOS.CO.UK","130.79","Learning Disabilities Management","5310","Equipment - Purchase","26/02/2019"
"Wolverhampton City Council","http://opendatacommunities.org/id/metropolitan-district-council/wolverhampton","ARGOS RETAIL GROUP","124.97","Learning Disabilities Management","5310","Equipment - Purchase","26/02/2019"
"Wolverhampton City Council","http://opendatacommunities.org/id/metropolitan-district-council/wolverhampton","COSYKIDZLTD","184.79","Learning Disabilities Management","5970","Equipment - Purchase","26/02/2019"
"Wolverhampton City Council","http://opendatacommunities.org/id/metropolitan-district-council/wolverhampton","AMZ Amazon.co.uk","-56.92","Legal Services","5999","Stationery","26/02/2019"
"Wolverhampton City Council","http://opendatacommunities.org/id/metropolitan-district-council/wolverhampton","ASDA GROCERIES ONLINE","140.54","Bradley Resource Centre","5411","Provisions (Not for resale)","25/02/2019"
"Wolverhampton City Council","http://opendatacommunities.org/id/metropolitan-district-council/wolverhampton","PRIORY ROOMS BULL","30.00","Head of Service Specialist Int Support","7399","Equipment - Hire","25/02/2019"
"Wolverhampton City Council","http://opendatacommunities.org/id/metropolitan-district-council/wolverhampton","POST OFFICE COUNTER","192.00","Safeguarding Admin Resource","9402","Comms - Postage","25/02/2019"
"Wolverhampton City Council","http://opendatacommunities.org/id/metropolitan-district-council/wolverhampton","COSTA COFFEE 43040010","5.15","Economic Development","5814","Educ Trips, Holidays, Outings, Activity","25/02/2019"
"Wolverhampton City Council","http://opendatacommunities.org/id/metropolitan-district-council/wolverhampton","WP-CENTRAL TAXIS L","208.00","Fostering Team & Allowances","4121","Client Transport","25/02/2019"
"Wolverhampton City Council","http://opendatacommunities.org/id/metropolitan-district-council/wolverhampton","WM MORRISONS STORE","2.00","Ernest Bold Court","5411","Provisions (Not for resale)","25/02/2019"
"Wolverhampton City Council","http://opendatacommunities.org/id/metropolitan-district-council/wolverhampton","VARIDESK","304.17","LAC Transitions Team","5021","Furniture","25/02/2019"
"Wolverhampton City Council","http://opendatacommunities.org/id/metropolitan-district-council/wolverhampton","TEXTHELPLTD","498.00","LAC Transitions Team","5734","Computing - Purchase of Software","25/02/2019"
"Wolverhampton City Council","http://opendatacommunities.org/id/metropolitan-district-council/wolverhampton","ARGOS LTD","41.66","Cemeteries","5310","Equipment - Purchase","25/02/2019"
"Wolverhampton City Council","http://opendatacommunities.org/id/metropolitan-district-council/wolverhampton","ISO/CS","125.12","Public Health Support Costs","2741","Publications","25/02/2019"
"Wolverhampton City Council","http://opendatacommunities.org/id/metropolitan-district-council/wolverhampton","CITY OF WOLVERHAMPTON","49.00","LAC Team","9399","Services - Fees and Charges","25/02/2019"
"Wolverhampton City Council","http://opendatacommunities.org/id/metropolitan-district-council/wolverhampton","Virgin Trains","85.35","Service Director City Economy","4112","Public Transport","25/02/2019"
"Wolverhampton City Council","http://opendatacommunities.org/id/metropolitan-district-council/wolverhampton","CUMMINGS BROTHERS LOCK","5.83","Public Conveniences","7399","Equipment - Purchase","25/02/2019"
"Wolverhampton City Council","http://opendatacommunities.org/id/metropolitan-district-council/wolverhampton","AMZN MKTP UK MI9F51WE4","18.51","Upper Pendeford Farm Childrens Home","5942","Educ Trips, Holidays, Outings, Activity","25/02/2019"
"Wolverhampton City Council","http://opendatacommunities.org/id/metropolitan-district-council/wolverhampton","AMZN MKTP UK MI2MU7WN4","10.22","Upper Pendeford Farm Childrens Home","5942","Educ Trips, Holidays, Outings, Activity","25/02/2019"
"Wolverhampton City Council","http://opendatacommunities.org/id/metropolitan-district-council/wolverhampton","AMZN MKTP UK MI2XZ9I74","68.53","Upper Pendeford Farm Childrens Home","5942","Educ Trips, Holidays, Outings, Activity","25/02/2019"
"Wolverhampton City Council","http://opendatacommunities.org/id/metropolitan-district-council/wolverhampton","AMZN Mktp UK MI3XT1IE4","24.30","Upper Pendeford Farm Childrens Home","5942","Educ Trips, Holidays, Outings, Activity","25/02/2019"
"Wolverhampton City Council","http://opendatacommunities.org/id/metropolitan-district-council/wolverhampton","AMZN MKTP UK MI4Y52UM4","4.30","Upper Pendeford Farm Childrens Home","5942","Educ Trips, Holidays, Outings, Activity","25/02/2019"
"Wolverhampton City Council","http://opendatacommunities.org/id/metropolitan-district-council/wolverhampton","Virgin Trains","63.75","LAC Team","4112","Public Transport","25/02/2019"
"Wolverhampton City Council","http://opendatacommunities.org/id/metropolitan-district-council/wolverhampton","Virgin Trains","99.10","LAC Team","4112","Public Transport","25/02/2019"
"Wolverhampton City Council","http://opendatacommunities.org/id/metropolitan-district-council/wolverhampton","AMZN Mktp UK MI47X6RM4","2.08","Work Related Studies","5942","Equipment - Purchase","25/02/2019"
"Wolverhampton City Council","http://opendatacommunities.org/id/metropolitan-district-council/wolverhampton","AMZN Mktp UK MI71I1IM4","10.79","Work Related Studies","5942","Equipment - Purchase","25/02/2019"
"Wolverhampton City Council","http://opendatacommunities.org/id/metropolitan-district-council/wolverhampton","SurveyMonkey","280.00","Safeguarding Partnership Board","7372","Computing - Purchase of Software","25/02/2019"
"Wolverhampton City Council","http://opendatacommunities.org/id/metropolitan-district-council/wolverhampton","FACEBK 4WV9UJN6C2","25.00","Education And Access","7311","Marketing \ Non-staff advertising","25/02/2019"
"Wolverhampton City Council","http://opendatacommunities.org/id/metropolitan-district-council/wolverhampton","FACEBK B53TXKJ6C2","25.00","Education And Access","7311","Marketing \ Non-staff advertising","25/02/2019"
"Wolverhampton City Council","http://opendatacommunities.org/id/metropolitan-district-council/wolverhampton","WP-CENTRAL TAXIS L","88.00","LAC Team","4121","Client Transport","25/02/2019"
"Wolverhampton City Council","http://opendatacommunities.org/id/metropolitan-district-council/wolverhampton","ASDA GROCERIES ONLINE","5.00","Ernest Bold Court","5411","Provisions (Not for resale)","25/02/2019"
"Wolverhampton City Council","http://opendatacommunities.org/id/metropolitan-district-council/wolverhampton","HERON FOODS LTD","18.52","Ernest Bold Court","5499","Catering","25/02/2019"
"Wolverhampton City Council","http://opendatacommunities.org/id/metropolitan-district-council/wolverhampton","ASDA GROCERIES ONLINE","64.61","Ernest Bold Court","5411","Provisions (Not for resale)","25/02/2019"
"Wolverhampton City Council","http://opendatacommunities.org/id/metropolitan-district-council/wolverhampton","Trainline","206.55","Head of Service - CINCP","4112","Public Transport","25/02/2019"
"Wolverhampton City Council","http://opendatacommunities.org/id/metropolitan-district-council/wolverhampton","Trainline","188.75","Head of Service - CINCP","4112","Public Transport","25/02/2019"
"Wolverhampton City Council","http://opendatacommunities.org/id/metropolitan-district-council/wolverhampton","AMZN Mktp UK MI4W16R24","15.20","Inclusion Support","5942","Materials","25/02/2019"
"Wolverhampton City Council","http://opendatacommunities.org/id/metropolitan-district-council/wolverhampton","HAVANT CONTAINER STORA","140.00","CIN/CP Social Work Unit - Area 5","4214","Section 17","25/02/2019"
"Wolverhampton City Council","http://opendatacommunities.org/id/metropolitan-district-council/wolverhampton","ROYAL CARPETS","125.00","LAC Transitions Team","5713","Client Allowances","25/02/2019"
"Wolverhampton City Council","http://opendatacommunities.org/id/metropolitan-district-council/wolverhampton","Amazon.co.uk MI0JW2WB4","12.49","Parking Enforcement","5969","Equipment - Purchase","25/02/2019"
"Wolverhampton City Council","http://opendatacommunities.org/id/metropolitan-district-council/wolverhampton","NATIONAL EXPRESS LIMIT","52.40","CAT","4131","No Recourse to Public Funds","25/02/2019"
"Wolverhampton City Council","http://opendatacommunities.org/id/metropolitan-district-council/wolverhampton","BRONWYE GUEST HOUS","55.00","Welfare Rights","7011","Accommodation Costs","25/02/2019"
"Wolverhampton City Council","http://opendatacommunities.org/id/metropolitan-district-council/wolverhampton","Amazon Prime MI8O73RR4","6.66","Global Budgets","5968","Subscriptions","25/02/2019"
"Wolverhampton City Council","http://opendatacommunities.org/id/metropolitan-district-council/wolverhampton","CITY OF WOLVERHAMPTON","13.33","LAC Transitions Team","9399","Client Allowances","25/02/2019"
"Wolverhampton City Council","http://opendatacommunities.org/id/metropolitan-district-council/wolverhampton","AMZN Mktp UK MI0O95UV4","17.90","Members Expenses","5942","Equipment - Purchase","25/02/2019"
"Wolverhampton City Council","http://opendatacommunities.org/id/metropolitan-district-council/wolverhampton","MILLIENIUM POINT C","2.80","Managing Director","9399","Services - Fees and Charges","22/02/2019"
"Wolverhampton City Council","http://opendatacommunities.org/id/metropolitan-district-council/wolverhampton","AMZN MKTP UK MI87H07S4","24.12","Central Baths","5942","Equipment - Purchase","22/02/2019"
"Wolverhampton City Council","http://opendatacommunities.org/id/metropolitan-district-council/wolverhampton","ASDA GROCERIES ONLINE","-16.12","Upper Pendeford Farm Childrens Home","5411","Provisions (Not for resale)","22/02/2019"
"Wolverhampton City Council","http://opendatacommunities.org/id/metropolitan-district-council/wolverhampton","AMZN MKTP UK MI9KV77W4","20.82","Upper Pendeford Farm Childrens Home","5942","Educ Trips, Holidays, Outings, Activity","22/02/2019"
"Wolverhampton City Council","http://opendatacommunities.org/id/metropolitan-district-council/wolverhampton","AMZN MKTP UK MI6SU09L4","19.16","Upper Pendeford Farm Childrens Home","5942","Educ Trips, Holidays, Outings, Activity","22/02/2019"
"Wolverhampton City Council","http://opendatacommunities.org/id/metropolitan-district-council/wolverhampton","ASDA GROCERIES ONLINE","246.96","Upper Pendeford Farm Childrens Home","5411","Provisions (Not for resale)","22/02/2019"
"Wolverhampton City Council","http://opendatacommunities.org/id/metropolitan-district-council/wolverhampton","AMZN MKTP UK MI83T29N4","50.80","Upper Pendeford Farm Childrens Home","5942","Educ Trips, Holidays, Outings, Activity","22/02/2019"
"Wolverhampton City Council","http://opendatacommunities.org/id/metropolitan-district-council/wolverhampton","AMZN MKTP UK MI73S59H4","11.46","Upper Pendeford Farm Childrens Home","5942","Educ Trips, Holidays, Outings, Activity","22/02/2019"
"Wolverhampton City Council","http://opendatacommunities.org/id/metropolitan-district-council/wolverhampton","AMZN MKTP UK MI6VX39V4","30.24","Upper Pendeford Farm Childrens Home","5942","Educ Trips, Holidays, Outings, Activity","22/02/2019"
"Wolverhampton City Council","http://opendatacommunities.org/id/metropolitan-district-council/wolverhampton","AMZN MKTP UK MI53619Z4","16.64","Upper Pendeford Farm Childrens Home","5942","Educ Trips, Holidays, Outings, Activity","22/02/2019"
"Wolverhampton City Council","http://opendatacommunities.org/id/metropolitan-district-council/wolverhampton","AMZN MKTP UK MI4WP89C4","55.56","Upper Pendeford Farm Childrens Home","5942","Educ Trips, Holidays, Outings, Activity","22/02/2019"
"Wolverhampton City Council","http://opendatacommunities.org/id/metropolitan-district-council/wolverhampton","AMZN MKTP UK MI4D909S4","13.32","Upper Pendeford Farm Childrens Home","5942","Educ Trips, Holidays, Outings, Activity","22/02/2019"
"Wolverhampton City Council","http://opendatacommunities.org/id/metropolitan-district-council/wolverhampton","AMZN MKTP UK MI1XU0964","20.95","Upper Pendeford Farm Childrens Home","5942","Educ Trips, Holidays, Outings, Activity","22/02/2019"
"Wolverhampton City Council","http://opendatacommunities.org/id/metropolitan-district-council/wolverhampton","EVINOX LTD","20.00","LAC Transitions Team","5074","Client Allowances","22/02/2019"
"Wolverhampton City Council","http://opendatacommunities.org/id/metropolitan-district-council/wolverhampton","000002200500000","50.00","Carers Support","6011","Financial Assistance In Exceptional Circ","22/02/2019"
"Wolverhampton City Council","http://opendatacommunities.org/id/metropolitan-district-council/wolverhampton","AMZN Mktp UK MI6H48964","13.09","Global Budgets","5942","Books","22/02/2019"
"Wolverhampton City Council","http://opendatacommunities.org/id/metropolitan-district-council/wolverhampton","AMZN Mktp UK MI5SX1994","36.09","Global Budgets","5942","Books","22/02/2019"
"Wolverhampton City Council","http://opendatacommunities.org/id/metropolitan-district-council/wolverhampton","FACEBK 4ZAWZJ66C2","17.00","Education And Access","7311","Marketing \ Non-staff advertising","22/02/2019"
"Wolverhampton City Council","http://opendatacommunities.org/id/metropolitan-district-council/wolverhampton","FACEBK 2HWURJE6C2","17.00","Education And Access","7311","Marketing \ Non-staff advertising","22/02/2019"
"Wolverhampton City Council","http://opendatacommunities.org/id/metropolitan-district-council/wolverhampton","SUPERIOR SIGNS LIMITED","22.35","Car Parks Operational Staff","5099","Equipment - Purchase","22/02/2019"
"Wolverhampton City Council","http://opendatacommunities.org/id/metropolitan-district-council/wolverhampton","THE SOLICITORS GROUP","129.00","Central Training","8244","Training Expenses","22/02/2019"
"Wolverhampton City Council","http://opendatacommunities.org/id/metropolitan-district-council/wolverhampton","Amazon.co.uk MI0G889S4","29.49","Legal Services","5969","Books","22/02/2019"
"Wolverhampton City Council","http://opendatacommunities.org/id/metropolitan-district-council/wolverhampton","B&M RETAIL LTD","47.22","Key to Inspiration","5310","Equipment - Purchase","22/02/2019"
"Wolverhampton City Council","http://opendatacommunities.org/id/metropolitan-district-council/wolverhampton","HOME BARGAINS","11.97","Key to Inspiration","5251","Equipment - Purchase","22/02/2019"
"Wolverhampton City Council","http://opendatacommunities.org/id/metropolitan-district-council/wolverhampton","PREMIER INN","61.25","Collections & Conservation","3811","Accommodation Costs","22/02/2019"
"Wolverhampton City Council","http://opendatacommunities.org/id/metropolitan-district-council/wolverhampton","IKEA LTD 142 BIRMINGHA","39.50","LAC Transitions Team","5712","Client Allowances","22/02/2019"
"Wolverhampton City Council","http://opendatacommunities.org/id/metropolitan-district-council/wolverhampton","WOMBOURNE POOL BAR LTD","5.20","Youth Offending Team","5813","Educ Trips, Holidays, Outings, Activity","22/02/2019"
"Wolverhampton City Council","http://opendatacommunities.org/id/metropolitan-district-council/wolverhampton","CURRYS","41.66","LAC Transitions Team","5732","Client Allowances","22/02/2019"
"Wolverhampton City Council","http://opendatacommunities.org/id/metropolitan-district-council/wolverhampton","CURRYS S/S","350.81","LAC Transitions Team","5732","Client Allowances","22/02/2019"
"Wolverhampton City Council","http://opendatacommunities.org/id/metropolitan-district-council/wolverhampton","POST OFFICE COUNTER","19.60","Adoption and Residence Team & Allowances","9402","Comms - Postage","22/02/2019"
"Wolverhampton City Council","http://opendatacommunities.org/id/metropolitan-district-council/wolverhampton","Hotel on Booking.com","85.00","Safeguarding Admin Resource","7011","Services - Supplies & Services to users","22/02/2019"
"Wolverhampton City Council","http://opendatacommunities.org/id/metropolitan-district-council/wolverhampton","TESCO STORES 5194","10.50","Towers Outdoor Education Centre","5411","Provisions (Not for resale)","22/02/2019"
"Wolverhampton City Council","http://opendatacommunities.org/id/metropolitan-district-council/wolverhampton","POST OFFICE COUNTER","522.00","Fostering Team & Allowances","9402","Comms - Postage","22/02/2019"
"Wolverhampton City Council","http://opendatacommunities.org/id/metropolitan-district-council/wolverhampton","SAINSBURYS PFS (1340)","1.67","Mayoral Expenses","5541","Vehicle Maintenance - Repairs","22/02/2019"
"Wolverhampton City Council","http://opendatacommunities.org/id/metropolitan-district-council/wolverhampton","SAINSBURYS SACAT (2340","5.30","Mayoral Expenses","5411","Hospitality","22/02/2019"
"Wolverhampton City Council","http://opendatacommunities.org/id/metropolitan-district-council/wolverhampton","SCREWFIX DIRECT LT","24.92","Cemeteries","5211","Materials","22/02/2019"
"Wolverhampton City Council","http://opendatacommunities.org/id/metropolitan-district-council/wolverhampton","JOHNSONS","9.17","Cemeteries","7210","Equipment - R & M","22/02/2019"
"Wolverhampton City Council","http://opendatacommunities.org/id/metropolitan-district-council/wolverhampton","WWW.LOCAL.GOV.UK","438.00","Public Health Support Costs","7399","Equipment - Purchase","22/02/2019"
"Wolverhampton City Council","http://opendatacommunities.org/id/metropolitan-district-council/wolverhampton","WWW.LOCAL.GOV.UK","438.00","Public Health Support Costs","7399","Equipment - Purchase","22/02/2019"
"Wolverhampton City Council","http://opendatacommunities.org/id/metropolitan-district-council/wolverhampton","WWW.WMCA.CO.UK","56.50","IMPACT","9399","Services - Fees and Charges","21/02/2019"
"Wolverhampton City Council","http://opendatacommunities.org/id/metropolitan-district-council/wolverhampton","ARGOS LTD","290.83","LAC Transitions Team","5310","Client Allowances","21/02/2019"
"Wolverhampton City Council","http://opendatacommunities.org/id/metropolitan-district-council/wolverhampton","AMZN Mktp UK MI2UR9764","9.53","LAC Transitions Team","5942","Client Allowances","21/02/2019"
"Wolverhampton City Council","http://opendatacommunities.org/id/metropolitan-district-council/wolverhampton","AMZN Mktp UK MI2OP2KV4","3.32","LAC Transitions Team","5942","Client Allowances","21/02/2019"
"Wolverhampton City Council","http://opendatacommunities.org/id/metropolitan-district-council/wolverhampton","WWW.CARESHOP.CO.UK","20.87","Ernest Bold Court","5999","Materials","21/02/2019"
"Wolverhampton City Council","http://opendatacommunities.org/id/metropolitan-district-council/wolverhampton","JD SPORTS FASHION","30.00","Youth Offending Team","5941","Equipment - Purchase","21/02/2019"
"Wolverhampton City Council","http://opendatacommunities.org/id/metropolitan-district-council/wolverhampton","COMBINED COURT","170.00","LAC Team","9222","Services - Fees and Charges","21/02/2019"
"Wolverhampton City Council","http://opendatacommunities.org/id/metropolitan-district-council/wolverhampton","TRIMTRADERS LIMITED","13.82","Towers Outdoor Education Centre","5200","Fixtures and Fittings - Purchases","21/02/2019"
"Wolverhampton City Council","http://opendatacommunities.org/id/metropolitan-district-council/wolverhampton","SPECSAVERSEVOUGB-","935.00","Eye Test Vouchers (HR)","8043","Services - Professional Fees","21/02/2019"
"Wolverhampton City Council","http://opendatacommunities.org/id/metropolitan-district-council/wolverhampton","TIMPSON LTD","72.00","Youth Offending Team","7251","Fixtures and Fittings - R&M","21/02/2019"
"Wolverhampton City Council","http://opendatacommunities.org/id/metropolitan-district-council/wolverhampton","Amazon Prime MI9RL47B4","7.99","Central Baths","5968","Subscriptions","21/02/2019"
"Wolverhampton City Council","http://opendatacommunities.org/id/metropolitan-district-council/wolverhampton","WWW.SPARKENERGY.CO.UK","121.86","LAC Transitions Team","4900","Client Allowances","21/02/2019"
"Wolverhampton City Council","http://opendatacommunities.org/id/metropolitan-district-council/wolverhampton","Trainline","9.92","CIN/CP Social Work Unit - Area 8","4112","Public Transport","21/02/2019"
"Wolverhampton City Council","http://opendatacommunities.org/id/metropolitan-district-council/wolverhampton","AMZN Mktp UK MI8UK27C4","10.18","Global Budgets","5942","Books","21/02/2019"
"Wolverhampton City Council","http://opendatacommunities.org/id/metropolitan-district-council/wolverhampton","AMZN Mktp UK MI5C21794","3.07","Global Budgets","5942","Books","21/02/2019"
"Wolverhampton City Council","http://opendatacommunities.org/id/metropolitan-district-council/wolverhampton","AMZN Mktp UK MI1LS8KU4","9.79","Global Budgets","5942","Books","21/02/2019"
"Wolverhampton City Council","http://opendatacommunities.org/id/metropolitan-district-council/wolverhampton","POST OFFICE COUNTER","1.55","Head of Service - LAC","9402","Comms - Postage","21/02/2019"
"Wolverhampton City Council","http://opendatacommunities.org/id/metropolitan-district-council/wolverhampton","NATWEST BANK","250.00","CAT","6011","Section 17","21/02/2019"
"Wolverhampton City Council","http://opendatacommunities.org/id/metropolitan-district-council/wolverhampton","Wolverhampton Fair Tra","92.34","Civic Centre Catering","5411","Provisions (Not for resale)","21/02/2019"
"Wolverhampton City Council","http://opendatacommunities.org/id/metropolitan-district-council/wolverhampton","MUSIC EXCHANGE","72.00","Music Support Team","5733","Books","21/02/2019"
"Wolverhampton City Council","http://opendatacommunities.org/id/metropolitan-district-council/wolverhampton","LINKEDIN-362 8051926","2,827.99","Strategic ICTS (ICT Serv Budget)","5968","Subscriptions","21/02/2019"
"Wolverhampton City Council","http://opendatacommunities.org/id/metropolitan-district-council/wolverhampton","ASDA GROCERIES ONLINE","79.63","Bradley Resource Centre","5411","Provisions (Not for resale)","21/02/2019"
"Wolverhampton City Council","http://opendatacommunities.org/id/metropolitan-district-council/wolverhampton","WOLVERHAMPTON T/O","74.40","Strategic ICTS (ICT Serv Budget)","4112","Public Transport","21/02/2019"
"Wolverhampton City Council","http://opendatacommunities.org/id/metropolitan-district-council/wolverhampton","Trainline","103.28","Service Director Adults","4112","Public Transport","20/02/2019"
"Wolverhampton City Council","http://opendatacommunities.org/id/metropolitan-district-council/wolverhampton","THE POST OFFICE","220.00","IMPACT","9402","Training Expenses","20/02/2019"
"Wolverhampton City Council","http://opendatacommunities.org/id/metropolitan-district-council/wolverhampton","WWW.ARGOS.CO.UK","-69.95","LAC Transitions Team","5310","Client Allowances","20/02/2019"
"Wolverhampton City Council","http://opendatacommunities.org/id/metropolitan-district-council/wolverhampton","WWW.ARGOS.CO.UK","69.95","LAC Transitions Team","5310","Client Allowances","20/02/2019"
"Wolverhampton City Council","http://opendatacommunities.org/id/metropolitan-district-council/wolverhampton","WWW.ARGOS.CO.UK","69.95","LAC Transitions Team","5310","Client Allowances","20/02/2019"
"Wolverhampton City Council","http://opendatacommunities.org/id/metropolitan-district-council/wolverhampton","Virgin Trains","184.00","Quality Assurance & Policies","4112","Public Transport","20/02/2019"
"Wolverhampton City Council","http://opendatacommunities.org/id/metropolitan-district-council/wolverhampton","AMZN Mktp UK MI4KE02A4","41.97","Bradley Resource Centre","5942","Catering","20/02/2019"
"Wolverhampton City Council","http://opendatacommunities.org/id/metropolitan-district-council/wolverhampton","WWW.ARGOS.CO.UK","159.99","Childrens with Disabilities Team","5310","Equipment - Purchase","20/02/2019"
"Wolverhampton City Council","http://opendatacommunities.org/id/metropolitan-district-council/wolverhampton","POST OFFICE COUNTER","18.30","Adoption and Residence Team & Allowances","9402","Comms - Postage","20/02/2019"
"Wolverhampton City Council","http://opendatacommunities.org/id/metropolitan-district-council/wolverhampton","123 REG R/T","143.76","City Direct","5968","Subscriptions","20/02/2019"
"Wolverhampton City Council","http://opendatacommunities.org/id/metropolitan-district-council/wolverhampton","Trainline","195.56","LAC Transitions Team","4112","Public Transport","20/02/2019"
"Wolverhampton City Council","http://opendatacommunities.org/id/metropolitan-district-council/wolverhampton","Virgin Trains","195.00","Delivery & OCE Development","4112","Public Transport","20/02/2019"
"Wolverhampton City Council","http://opendatacommunities.org/id/metropolitan-district-council/wolverhampton","HARMI TRAVELS /MIDLAND","500.00","LAC Team","4722","Financial Assistance In Exceptional Circ","20/02/2019"
"Wolverhampton City Council","http://opendatacommunities.org/id/metropolitan-district-council/wolverhampton","WILKO RETAIL LIMIT","10.05","Work Related Studies","5722","Equipment - Purchase","20/02/2019"
"Wolverhampton City Council","http://opendatacommunities.org/id/metropolitan-district-council/wolverhampton","JOHNSONS","16.20","Service Wide","7210","Laundry Expenses","20/02/2019"
"Wolverhampton City Council","http://opendatacommunities.org/id/metropolitan-district-council/wolverhampton","ROYAL CARPETS","83.33","LAC Transitions Team","5713","Client Allowances","20/02/2019"
"Wolverhampton City Council","http://opendatacommunities.org/id/metropolitan-district-council/wolverhampton","CITY OF WOLVERHAMPTON","16.00","LAC Team","9399","Services - Fees and Charges","20/02/2019"
"Wolverhampton City Council","http://opendatacommunities.org/id/metropolitan-district-council/wolverhampton","Amazon.co.uk MI3G74244","5.99","SEN Sensory Inclusion","5969","Equipment - Purchase","20/02/2019"
"Wolverhampton City Council","http://opendatacommunities.org/id/metropolitan-district-council/wolverhampton","AMZN Mktp UK MI11O3KP4","6.26","Global Budgets","5942","Books","20/02/2019"
"Wolverhampton City Council","http://opendatacommunities.org/id/metropolitan-district-council/wolverhampton","EBUYER (UK) LTD","280.08","Macmillan Welfare Rights","5722","Computing - Consumables","20/02/2019"
"Wolverhampton City Council","http://opendatacommunities.org/id/metropolitan-district-council/wolverhampton","WOLVES FC","630.00","Wolverhampton Indoor and Open Market","7997","Hospitality","20/02/2019"
"Wolverhampton City Council","http://opendatacommunities.org/id/metropolitan-district-council/wolverhampton","AMZN Mktp UK MI8228SE4","3.17","Learning Technologies","5942","Books","19/02/2019"
"Wolverhampton City Council","http://opendatacommunities.org/id/metropolitan-district-council/wolverhampton","AMZN Mktp UK MI8YU5SF4","3.18","Learning Technologies","5942","Books","19/02/2019"
"Wolverhampton City Council","http://opendatacommunities.org/id/metropolitan-district-council/wolverhampton","AMZN Mktp UK MI7DL4S54","3.17","Learning Technologies","5942","Books","19/02/2019"
"Wolverhampton City Council","http://opendatacommunities.org/id/metropolitan-district-council/wolverhampton","AMZN Mktp UK MI43U1SO4","3.18","Learning Technologies","5942","Books","19/02/2019"
"Wolverhampton City Council","http://opendatacommunities.org/id/metropolitan-district-council/wolverhampton","AMZN Mktp UK MI4WZ0SA4","3.13","Learning Technologies","5942","Books","19/02/2019"
"Wolverhampton City Council","http://opendatacommunities.org/id/metropolitan-district-council/wolverhampton","AMZN Mktp UK MI4K11SK4","3.17","Learning Technologies","5942","Books","19/02/2019"
"Wolverhampton City Council","http://opendatacommunities.org/id/metropolitan-district-council/wolverhampton","AMZN Mktp UK MI4D76SW4","3.18","Learning Technologies","5942","Books","19/02/2019"
"Wolverhampton City Council","http://opendatacommunities.org/id/metropolitan-district-council/wolverhampton","AMZN Mktp UK MI3KP0S54","3.12","Learning Technologies","5942","Books","19/02/2019"
"Wolverhampton City Council","http://opendatacommunities.org/id/metropolitan-district-council/wolverhampton","AMZN Mktp UK MI3DL5SO4","3.18","Learning Technologies","5942","Books","19/02/2019"
"Wolverhampton City Council","http://opendatacommunities.org/id/metropolitan-district-council/wolverhampton","AMZN Mktp UK MI23R4SR4","3.17","Learning Technologies","5942","Books","19/02/2019"
"Wolverhampton City Council","http://opendatacommunities.org/id/metropolitan-district-council/wolverhampton","AMZN Mktp UK MI1498S64","3.18","Learning Technologies","5942","Books","19/02/2019"
"Wolverhampton City Council","http://opendatacommunities.org/id/metropolitan-district-council/wolverhampton","AMZN Mktp UK MI0KC4SD4","3.17","Learning Technologies","5942","Books","19/02/2019"
"Wolverhampton City Council","http://opendatacommunities.org/id/metropolitan-district-council/wolverhampton","ASDA GROCERIES ONLINE","53.79","Ernest Bold Court","5411","Provisions (Not for resale)","19/02/2019"
"Wolverhampton City Council","http://opendatacommunities.org/id/metropolitan-district-council/wolverhampton","TVLICENSING.CO.UK","150.50","Specialist Support Service - North","7392","Services - General Licences","19/02/2019"
"Wolverhampton City Council","http://opendatacommunities.org/id/metropolitan-district-council/wolverhampton","Greater Anglia Trains","4.90","Court Team","4112","Section 17","19/02/2019"
"Wolverhampton City Council","http://opendatacommunities.org/id/metropolitan-district-council/wolverhampton","ASDA GROCERIES ONLINE","-.39","Ernest Bold Court","5411","Provisions (Not for resale)","19/02/2019"
"Wolverhampton City Council","http://opendatacommunities.org/id/metropolitan-district-council/wolverhampton","Cross Country Trains","56.60","Court Team","4112","Section 17","19/02/2019"
"Wolverhampton City Council","http://opendatacommunities.org/id/metropolitan-district-council/wolverhampton","STAGECOACH SERVICE","11.17","Court Team","4131","Section 17","19/02/2019"
"Wolverhampton City Council","http://opendatacommunities.org/id/metropolitan-district-council/wolverhampton","LOYD 37 CHURCH STREET","166.67","Duke Street Bungalows","6011","Provisions (Not for resale)","19/02/2019"
"Wolverhampton City Council","http://opendatacommunities.org/id/metropolitan-district-council/wolverhampton","THE SOLICITORS GROUP","-129.00","Central Training","8244","Training Expenses","19/02/2019"
"Wolverhampton City Council","http://opendatacommunities.org/id/metropolitan-district-council/wolverhampton","PATOSS LTD","188.00","Workforce Development","8641","Training Expenses","19/02/2019"
"Wolverhampton City Council","http://opendatacommunities.org/id/metropolitan-district-council/wolverhampton","SCREWFIX DIRECT LT","-33.32","Site works","5211","Equipment - Purchase","19/02/2019"
"Wolverhampton City Council","http://opendatacommunities.org/id/metropolitan-district-council/wolverhampton","HOBBYCRAFT","214.50","Adoption and Residence Team & Allowances","5970","Materials","19/02/2019"
"Wolverhampton City Council","http://opendatacommunities.org/id/metropolitan-district-council/wolverhampton","INSIDERMEDI","210.00","Delivery & OCE Development","5942","Books","19/02/2019"
"Wolverhampton City Council","http://opendatacommunities.org/id/metropolitan-district-council/wolverhampton","POST OFFICE COUNTER","14.60","Adoption and Residence Team & Allowances","9402","Comms - Postage","19/02/2019"
"Wolverhampton City Council","http://opendatacommunities.org/id/metropolitan-district-council/wolverhampton","POUNDLAND","6.00","Bradley Resource Centre","5310","Catering","19/02/2019"
"Wolverhampton City Council","http://opendatacommunities.org/id/metropolitan-district-council/wolverhampton","ASDA GROCERIES ONLINE","109.92","Bradley Resource Centre","5411","Provisions (Not for resale)","19/02/2019"
"Wolverhampton City Council","http://opendatacommunities.org/id/metropolitan-district-council/wolverhampton","HEATHROW EXPRESS","37.00","Collections & Conservation","4112","Public Transport","19/02/2019"
"Wolverhampton City Council","http://opendatacommunities.org/id/metropolitan-district-council/wolverhampton","WWW.MOMART.CO.UK","25.00","Collections & Conservation","5971","Training Expenses","19/02/2019"
"Wolverhampton City Council","http://opendatacommunities.org/id/metropolitan-district-council/wolverhampton","Trainline","61.36","Collections & Conservation","4112","Public Transport","19/02/2019"
"Wolverhampton City Council","http://opendatacommunities.org/id/metropolitan-district-council/wolverhampton","PRIORY ROOMS BULL","162.00","RAA - Regional Adoption Agency","7399","Room Hire","19/02/2019"
"Wolverhampton City Council","http://opendatacommunities.org/id/metropolitan-district-council/wolverhampton","Trainline","132.12","Safeguarding Admin Resource","4112","Public Transport","19/02/2019"
"Wolverhampton City Council","http://opendatacommunities.org/id/metropolitan-district-council/wolverhampton","WWW.WMCA.ORG.UK","60.90","LAC Transitions Team","9399","Client Allowances","19/02/2019"
"Wolverhampton City Council","http://opendatacommunities.org/id/metropolitan-district-council/wolverhampton","EB  MENTAL HEALTH FIRS","175.00","LAC Transitions Team","7399","Training Expenses","19/02/2019"
"Wolverhampton City Council","http://opendatacommunities.org/id/metropolitan-district-council/wolverhampton","Virgin Trains","184.60","Adoption and Residence Team & Allowances","4112","Public Transport","19/02/2019"
"Wolverhampton City Council","http://opendatacommunities.org/id/metropolitan-district-council/wolverhampton","GOOGLE  ADS9680351324","500.00","Communications & Marketing - General","5968","Subscriptions","19/02/2019"
"Wolverhampton City Council","http://opendatacommunities.org/id/metropolitan-district-council/wolverhampton","AMZN MKTP UK MI0T22DC4","10.66","Youth Offending Team","5942","Protective Clothing","19/02/2019"
"Wolverhampton City Council","http://opendatacommunities.org/id/metropolitan-district-council/wolverhampton","Trainline","155.58","LAC Transitions Team","4112","Public Transport","19/02/2019"
"Wolverhampton City Council","http://opendatacommunities.org/id/metropolitan-district-council/wolverhampton","Trainline","101.24","LAC Transitions Team","4112","Public Transport","19/02/2019"
"Wolverhampton City Council","http://opendatacommunities.org/id/metropolitan-district-council/wolverhampton","Trainline","-6.00","CIN/CP Social Work Unit - Area 8","4112","Client Transport","19/02/2019"
"Wolverhampton City Council","http://opendatacommunities.org/id/metropolitan-district-council/wolverhampton","PO WILLENHALL RD 5497","10.00","EIP Locality 1","6011","Grant Payments","19/02/2019"
"Wolverhampton City Council","http://opendatacommunities.org/id/metropolitan-district-council/wolverhampton","Virgin Trains","8.50","Children & Young People Support Costs","4112","Public Transport","19/02/2019"
"Wolverhampton City Council","http://opendatacommunities.org/id/metropolitan-district-council/wolverhampton","WIX.COM","186.26","Technical Support","5968","Subscriptions","19/02/2019"
"Wolverhampton City Council","http://opendatacommunities.org/id/metropolitan-district-council/wolverhampton","AMZN MKTP UK MI6H97SB4","44.46","Learning Technologies","5942","Books","19/02/2019"
"Wolverhampton City Council","http://opendatacommunities.org/id/metropolitan-district-council/wolverhampton","AMZN Mktp UK MI9KC4S14","3.17","Learning Technologies","5942","Books","19/02/2019"
"Wolverhampton City Council","http://opendatacommunities.org/id/metropolitan-district-council/wolverhampton","AMZN Mktp UK MI8691SZ4","3.18","Learning Technologies","5942","Books","19/02/2019"
"Wolverhampton City Council","http://opendatacommunities.org/id/metropolitan-district-council/wolverhampton","AMZN Mktp UK MI83C3SL4","3.18","Learning Technologies","5942","Books","19/02/2019"
"Wolverhampton City Council","http://opendatacommunities.org/id/metropolitan-district-council/wolverhampton","CITY OF WOLVERHAMPTON","65.00","Head of Service - CINCP","9399","Services - Professional Fees","18/02/2019"
"Wolverhampton City Council","http://opendatacommunities.org/id/metropolitan-district-council/wolverhampton","AMZN Mktp UK MI87B9DW4","99.87","SEN Early Years Team","5942","Equipment - Purchase","18/02/2019"
"Wolverhampton City Council","http://opendatacommunities.org/id/metropolitan-district-council/wolverhampton","AMZN Mktp UK MI2J55874","13.16","SEN Early Years Team","5942","Equipment - Purchase","18/02/2019"
"Wolverhampton City Council","http://opendatacommunities.org/id/metropolitan-district-council/wolverhampton","WWW.MOTOR.ORG.UK","60.00","Central Training","5999","Training Expenses","18/02/2019"
"Wolverhampton City Council","http://opendatacommunities.org/id/metropolitan-district-council/wolverhampton","WWW.MOTOR.ORG.UK","60.00","Central Training","5999","Training Expenses","18/02/2019"
"Wolverhampton City Council","http://opendatacommunities.org/id/metropolitan-district-council/wolverhampton","WWW.MOTOR.ORG.UK","60.00","Central Training","5999","Training Expenses","18/02/2019"
"Wolverhampton City Council","http://opendatacommunities.org/id/metropolitan-district-council/wolverhampton","WWW.MOTOR.ORG.UK","60.00","Central Training","5999","Training Expenses","18/02/2019"
"Wolverhampton City Council","http://opendatacommunities.org/id/metropolitan-district-council/wolverhampton","AMZN Mktp UK MI2TB6DO4","16.19","Parks - East Area Management","5942","Equipment - Purchase","18/02/2019"
"Wolverhampton City Council","http://opendatacommunities.org/id/metropolitan-district-council/wolverhampton","AMZN Mktp UK MI2G316N4","46.24","Waste Coll & Recycling Serv General","5942","Equipment - Purchase","18/02/2019"
"Wolverhampton City Council","http://opendatacommunities.org/id/metropolitan-district-council/wolverhampton","AMZN Mktp UK MI6O71QM4","11.64","Parks - East Area Management","5942","Equipment - Purchase","18/02/2019"
"Wolverhampton City Council","http://opendatacommunities.org/id/metropolitan-district-council/wolverhampton","WWW.ELITEINDUSTRIAL.CO","111.19","Street Cleansing Overheads","5999","Equipment - Purchase","18/02/2019"
"Wolverhampton City Council","http://opendatacommunities.org/id/metropolitan-district-council/wolverhampton","WWW.LOCKANDKEY.CO.UK","133.72","Landscape","5085","Equipment - Purchase","18/02/2019"
"Wolverhampton City Council","http://opendatacommunities.org/id/metropolitan-district-council/wolverhampton","AMZN Mktp UK MI3P92QT4","4.79","Parks - Ranger Service","5942","Equipment - Purchase","18/02/2019"
"Wolverhampton City Council","http://opendatacommunities.org/id/metropolitan-district-council/wolverhampton","Amazon.co.uk MI6G26DM4","28.66","EIP Locality 7","5969","Equipment - Purchase","18/02/2019"
"Wolverhampton City Council","http://opendatacommunities.org/id/metropolitan-district-council/wolverhampton","WWW.GAME.CO.UK","249.99","Key to Inspiration","5945","Equipment - Purchase","18/02/2019"
"Wolverhampton City Council","http://opendatacommunities.org/id/metropolitan-district-council/wolverhampton","B&M RETAIL","30.00","Key to Inspiration","5310","Equipment - Purchase","18/02/2019"
"Wolverhampton City Council","http://opendatacommunities.org/id/metropolitan-district-council/wolverhampton","B&M RETAIL","30.00","Key to Inspiration","5310","Equipment - Purchase","18/02/2019"
"Wolverhampton City Council","http://opendatacommunities.org/id/metropolitan-district-council/wolverhampton","ASDA GROCERIES ONLINE","-.10","-","5411","Provisions (Not for resale)","18/02/2019"
"Wolverhampton City Council","http://opendatacommunities.org/id/metropolitan-district-council/wolverhampton","ASDA GROCERIES ONLINE","103.70","Bradley Resource Centre","5411","Provisions (Not for resale)","18/02/2019"
"Wolverhampton City Council","http://opendatacommunities.org/id/metropolitan-district-council/wolverhampton","GRAFITYP UK LTD","327.80","Document Centre - General","5965","Equipment - Purchase","18/02/2019"
"Wolverhampton City Council","http://opendatacommunities.org/id/metropolitan-district-council/wolverhampton","WOLVERHAMPTON T/O","24.00","Service Director Adults","4112","Public Transport","18/02/2019"
"Wolverhampton City Council","http://opendatacommunities.org/id/metropolitan-district-council/wolverhampton","WEST MID TRAVEL","436.90","IMPACT","4131","Public Transport","18/02/2019"
"Wolverhampton City Council","http://opendatacommunities.org/id/metropolitan-district-council/wolverhampton","DULUX DECORATOR CENTRE","74.77","Technician","5198","Materials","18/02/2019"
"Wolverhampton City Council","http://opendatacommunities.org/id/metropolitan-district-council/wolverhampton","DULUX DECORATOR CENTRE","299.09","Radical Landscapes","5198","Materials","18/02/2019"
"Wolverhampton City Council","http://opendatacommunities.org/id/metropolitan-district-council/wolverhampton","SAINSBURYS SACAT (2340","6.00","Discretionary Fund","5411","Materials","18/02/2019"
"Wolverhampton City Council","http://opendatacommunities.org/id/metropolitan-district-council/wolverhampton","THE FLOWER STALL","150.00","Mayoral Expenses","5992","Hospitality","18/02/2019"
"Wolverhampton City Council","http://opendatacommunities.org/id/metropolitan-district-council/wolverhampton","DUNELM (SOFT FURNISHIN","55.91","Register Office","5714","R4007","18/02/2019"
"Wolverhampton City Council","http://opendatacommunities.org/id/metropolitan-district-council/wolverhampton","HOME BARGAINS WOLVERHA","73.90","Register Office","5251","Materials","18/02/2019"
"Wolverhampton City Council","http://opendatacommunities.org/id/metropolitan-district-council/wolverhampton","POUNDLAND LTD 1463","2.67","Business Support Services","5310","Equipment - Purchase","18/02/2019"
"Wolverhampton City Council","http://opendatacommunities.org/id/metropolitan-district-council/wolverhampton","MARKS&SPENCER PLC SACA","37.10","Business Support Services","5411","Provisions (Not for resale)","18/02/2019"
"Wolverhampton City Council","http://opendatacommunities.org/id/metropolitan-district-council/wolverhampton","WISEPOPS","85.98","Communications & Marketing - General","7372","Computing - Purchase of Software","18/02/2019"
"Wolverhampton City Council","http://opendatacommunities.org/id/metropolitan-district-council/wolverhampton","PAYPAL  OGUNDAGDEVI","5.98","Strategic ICTS (ICT Serv Budget)","5999","Equipment - Purchase","18/02/2019"
"Wolverhampton City Council","http://opendatacommunities.org/id/metropolitan-district-council/wolverhampton","WM MORRISONS STORE","108.14","Upper Pendeford Farm Childrens Home","5411","Provisions (Not for resale)","18/02/2019"
"Wolverhampton City Council","http://opendatacommunities.org/id/metropolitan-district-council/wolverhampton","AMZ Amazon.co.uk","-2.51","Archives","5969","Books","18/02/2019"
"Wolverhampton City Council","http://opendatacommunities.org/id/metropolitan-district-council/wolverhampton","Amazon.co.uk MI2J408X4","17.98","Archives","5969","Books","18/02/2019"
"Wolverhampton City Council","http://opendatacommunities.org/id/metropolitan-district-council/wolverhampton","WOMBOURNE MEMORIAL","1,529.00","Wolverhampton Indoor and Open Market","1740","R&M - Departmental response (external)","18/02/2019"
"Wolverhampton City Council","http://opendatacommunities.org/id/metropolitan-district-council/wolverhampton","WWW.ARGOS.CO.UK","297.46","Learning Disabilities Management","5310","Equipment - Purchase","18/02/2019"
"Wolverhampton City Council","http://opendatacommunities.org/id/metropolitan-district-council/wolverhampton","Amazon.co.uk MI9X946J4","102.13","Learning Disabilities Management","5969","Equipment - Purchase","18/02/2019"
"Wolverhampton City Council","http://opendatacommunities.org/id/metropolitan-district-council/wolverhampton","COSYKIDZLTD","289.59","Learning Disabilities Management","5970","Equipment - Purchase","18/02/2019"
"Wolverhampton City Council","http://opendatacommunities.org/id/metropolitan-district-council/wolverhampton","WWW.IKEA.COM","38.29","Learning Disabilities Management","5712","Equipment - Purchase","18/02/2019"
"Wolverhampton City Council","http://opendatacommunities.org/id/metropolitan-district-council/wolverhampton","Virgin Trains","8.50","Children & Young People Support Costs","4112","Public Transport","18/02/2019"
"Wolverhampton City Council","http://opendatacommunities.org/id/metropolitan-district-council/wolverhampton","ASDA GROCERIES ONLINE","44.90","Ernest Bold Court","5411","Provisions (Not for resale)","18/02/2019"
"Wolverhampton City Council","http://opendatacommunities.org/id/metropolitan-district-council/wolverhampton","WWW.ICO.GOV.UK","40.00","Members Expenses","9399","Subscriptions","18/02/2019"
"Wolverhampton City Council","http://opendatacommunities.org/id/metropolitan-district-council/wolverhampton","Trainline","163.00","Parking Enforcement","4112","Public Transport","18/02/2019"
"Wolverhampton City Council","http://opendatacommunities.org/id/metropolitan-district-council/wolverhampton","TRAVELODGE","75.83","Court Team","3615","Section 17","18/02/2019"
"Wolverhampton City Council","http://opendatacommunities.org/id/metropolitan-district-council/wolverhampton","HOLIDAYINN E MIDDLESBR","45.00","Court Team","7011","Section 17","18/02/2019"
"Wolverhampton City Council","http://opendatacommunities.org/id/metropolitan-district-council/wolverhampton","NATWEST BANK","200.00","CAT","6011","Section 17","18/02/2019"
"Wolverhampton City Council","http://opendatacommunities.org/id/metropolitan-district-council/wolverhampton","TIMPSON LTD","20.00","Meals on Wheels","7251","Equipment - R & M","18/02/2019"
"Wolverhampton City Council","http://opendatacommunities.org/id/metropolitan-district-council/wolverhampton","AMZN MKTP UK AMAZON.CO","-40.38","Private Hire Vehicles","5942","Books","15/02/2019"
"Wolverhampton City Council","http://opendatacommunities.org/id/metropolitan-district-council/wolverhampton","BIRMINGHAM REP ENTERPR","16.95","Youth Offending Team","5811","Catering","15/02/2019"
"Wolverhampton City Council","http://opendatacommunities.org/id/metropolitan-district-council/wolverhampton","BIRMINGHAM REP ENTERPR","4.00","Youth Offending Team","5811","Catering","15/02/2019"
"Wolverhampton City Council","http://opendatacommunities.org/id/metropolitan-district-council/wolverhampton","MACHINE MART LTD","150.00","Play General","5722","Equipment - Purchase","15/02/2019"
"Wolverhampton City Council","http://opendatacommunities.org/id/metropolitan-district-council/wolverhampton","LOYD 37 CHURCH STREET","300.00","EIP Locality 8","6011","Grant Payments","15/02/2019"
"Wolverhampton City Council","http://opendatacommunities.org/id/metropolitan-district-council/wolverhampton","000002200500000","250.00","Childrens with Disabilities Team","6011","Financial Assistance In Exceptional Circ","15/02/2019"
"Wolverhampton City Council","http://opendatacommunities.org/id/metropolitan-district-council/wolverhampton","ROYAL BK OF SCOTLAND","240.00","CIN/CP Social Work Unit - Area 6","6011","Section 17","15/02/2019"
"Wolverhampton City Council","http://opendatacommunities.org/id/metropolitan-district-council/wolverhampton","POST OFFICE COUNTER","8.60","Adoption and Residence Team & Allowances","9402","Comms - Postage","15/02/2019"
"Wolverhampton City Council","http://opendatacommunities.org/id/metropolitan-district-council/wolverhampton","BARCLAYS","250.00","CIN/CP Social Work Unit - Area 6","6011","Financial Assistance In Exceptional Circ","15/02/2019"
"Wolverhampton City Council","http://opendatacommunities.org/id/metropolitan-district-council/wolverhampton","AMZN Mktp UK MI7YF3B64","16.77","Education And Access","5942","Materials","15/02/2019"
"Wolverhampton City Council","http://opendatacommunities.org/id/metropolitan-district-council/wolverhampton","AMZN Mktp UK MI7GI8BO4","2.97","Education And Access","5942","Materials","15/02/2019"
"Wolverhampton City Council","http://opendatacommunities.org/id/metropolitan-district-council/wolverhampton","AMZN Mktp UK MI66P2BA4","5.45","Education And Access","5942","Materials","15/02/2019"
"Wolverhampton City Council","http://opendatacommunities.org/id/metropolitan-district-council/wolverhampton","BLOXWICH  SST","7.40","Economic Development","4112","Public Transport","15/02/2019"
"Wolverhampton City Council","http://opendatacommunities.org/id/metropolitan-district-council/wolverhampton","HMCOURTS-SERVICE.G","62.50","Mental Health Assessment & Care Mgmt","9222","Services - Fees and Charges","15/02/2019"
"Wolverhampton City Council","http://opendatacommunities.org/id/metropolitan-district-council/wolverhampton","ITUNES.COM/BILL","2.07","LAC Education Team (LACE)","5735","Computing - Purchase of Software","15/02/2019"
"Wolverhampton City Council","http://opendatacommunities.org/id/metropolitan-district-council/wolverhampton","PREMIER INN","72.50","LAC Team","3811","Accommodation Costs","15/02/2019"
"Wolverhampton City Council","http://opendatacommunities.org/id/metropolitan-district-council/wolverhampton","Virgin Trains","134.05","LAC Team","4112","Public Transport","15/02/2019"
"Wolverhampton City Council","http://opendatacommunities.org/id/metropolitan-district-council/wolverhampton","SCREWFIX DIRECT LT","9.99","Caretakers Community Centre","5211","Materials","15/02/2019"
"Wolverhampton City Council","http://opendatacommunities.org/id/metropolitan-district-council/wolverhampton","WWW.GOV.UK","8.33","Legal Services","8999","Services - Professional Fees","15/02/2019"
"Wolverhampton City Council","http://opendatacommunities.org/id/metropolitan-district-council/wolverhampton","MUSIC STORE profession","428.00","Central Baths","5733","Equipment - Purchase","15/02/2019"
"Wolverhampton City Council","http://opendatacommunities.org/id/metropolitan-district-council/wolverhampton","ASDA GROCERIES ONLINE","5.00","Upper Pendeford Farm Childrens Home","5411","Provisions (Not for resale)","15/02/2019"
"Wolverhampton City Council","http://opendatacommunities.org/id/metropolitan-district-council/wolverhampton","WWW.RAINBOWSAFETEY.CO.","39.28","Service Wide","5999","Equipment - Purchase","15/02/2019"
"Wolverhampton City Council","http://opendatacommunities.org/id/metropolitan-district-council/wolverhampton","ZEN SOFTWARE LTD","46.20","ICT Services","5734","Computing - Purchase of Software","15/02/2019"
"Wolverhampton City Council","http://opendatacommunities.org/id/metropolitan-district-council/wolverhampton","CURRYS S/S","21.99","Transportation General","5732","Equipment - Purchase","15/02/2019"
"Wolverhampton City Council","http://opendatacommunities.org/id/metropolitan-district-council/wolverhampton","AMZN Mktp UK MI7WQ2BI4","8.89","SEN Sensory Inclusion","5942","Equipment - Purchase","15/02/2019"
"Wolverhampton City Council","http://opendatacommunities.org/id/metropolitan-district-council/wolverhampton","HM PASSPORT OFFICE","49.00","LAC Team","9399","Financial Assistance In Exceptional Circ","15/02/2019"
"Wolverhampton City Council","http://opendatacommunities.org/id/metropolitan-district-council/wolverhampton","HM PASSPORT OFFICE","49.00","LAC Team","9399","Financial Assistance In Exceptional Circ","15/02/2019"
"Wolverhampton City Council","http://opendatacommunities.org/id/metropolitan-district-council/wolverhampton","THE MAJESTIC HOTEL","74.17","CIN/CP Social Work Unit - Area 5","7011","Section 17","15/02/2019"
"Wolverhampton City Council","http://opendatacommunities.org/id/metropolitan-district-council/wolverhampton","Trainline","82.26","Welfare Rights","4112","Public Transport","15/02/2019"
"Wolverhampton City Council","http://opendatacommunities.org/id/metropolitan-district-council/wolverhampton","THE COAL AUTHORITY","325.39","Disposal Costs","9399","Services - Professional Fees","15/02/2019"
"Wolverhampton City Council","http://opendatacommunities.org/id/metropolitan-district-council/wolverhampton","AMZN Mktp UK MI8I698F4","1.88","SEN Early Years Team","5942","Equipment - Purchase","15/02/2019"
"Wolverhampton City Council","http://opendatacommunities.org/id/metropolitan-district-council/wolverhampton","AMZN Mktp UK MI8AB6BI4","10.91","SEN Early Years Team","5942","Equipment - Purchase","15/02/2019"
"Wolverhampton City Council","http://opendatacommunities.org/id/metropolitan-district-council/wolverhampton","AMZN Mktp UK MI1UU4854","92.04","SEN Early Years Team","5942","Equipment - Purchase","15/02/2019"
"Wolverhampton City Council","http://opendatacommunities.org/id/metropolitan-district-council/wolverhampton","AMZN Mktp UK MI8W00B24","51.98","SEN Early Years Team","5942","Equipment - Purchase","15/02/2019"
"Wolverhampton City Council","http://opendatacommunities.org/id/metropolitan-district-council/wolverhampton","AMZN Mktp UK MI6GX0B64","5.93","SEN Early Years Team","5942","Equipment - Purchase","15/02/2019"
"Wolverhampton City Council","http://opendatacommunities.org/id/metropolitan-district-council/wolverhampton","AMZN Mktp UK MI1SE6BA4","4.94","SEN Early Years Team","5942","Equipment - Purchase","15/02/2019"
"Wolverhampton City Council","http://opendatacommunities.org/id/metropolitan-district-council/wolverhampton","AMZN Mktp UK MI06638I4","12.87","SEN Early Years Team","5942","Equipment - Purchase","15/02/2019"
"Wolverhampton City Council","http://opendatacommunities.org/id/metropolitan-district-council/wolverhampton","RELIANCE MEDICAL LTD","135.35","Music Support Team","5047","Equipment - Purchase","15/02/2019"
"Wolverhampton City Council","http://opendatacommunities.org/id/metropolitan-district-council/wolverhampton","ABC Cars     AbcCars","5.60","Northicote Farm","4121","Client Transport","15/02/2019"
"Wolverhampton City Council","http://opendatacommunities.org/id/metropolitan-district-council/wolverhampton","Amazon.co.uk MI03T9HY4","31.64","School Improvement","5969","Equipment - Purchase","14/02/2019"
"Wolverhampton City Council","http://opendatacommunities.org/id/metropolitan-district-council/wolverhampton","Hotel on Booking.com","287.50","The Little Civic","7011","Services - Supplies & Services to users","14/02/2019"
"Wolverhampton City Council","http://opendatacommunities.org/id/metropolitan-district-council/wolverhampton","Hotel on Booking.com","152.50","The Little Civic","7011","Services - Supplies & Services to users","14/02/2019"
"Wolverhampton City Council","http://opendatacommunities.org/id/metropolitan-district-council/wolverhampton","DVLA DRIVER ONLINE","34.00","LAC Transitions Team","9399","Client Allowances","14/02/2019"
"Wolverhampton City Council","http://opendatacommunities.org/id/metropolitan-district-council/wolverhampton","LONDIS","6.45","Towers Outdoor Education Centre","5921","Provisions (Not for resale)","14/02/2019"
"Wolverhampton City Council","http://opendatacommunities.org/id/metropolitan-district-council/wolverhampton","A & E SQUIRE LTD","5.50","Towers Outdoor Education Centre","5251","Fixtures and Fittings - Purchases","14/02/2019"
"Wolverhampton City Council","http://opendatacommunities.org/id/metropolitan-district-council/wolverhampton","AMZN MKTP UK MI7YB75S4","6.40","Towers Outdoor Education Centre","5942","Fixtures and Fittings - Purchases","14/02/2019"
"Wolverhampton City Council","http://opendatacommunities.org/id/metropolitan-district-council/wolverhampton","AMZN MKTP UK MI5A025W4","21.19","Towers Outdoor Education Centre","5942","Equipment - Purchase","14/02/2019"
"Wolverhampton City Council","http://opendatacommunities.org/id/metropolitan-district-council/wolverhampton","AMZN MKTP UK MI0OY85D4","10.95","Towers Outdoor Education Centre","5942","Fixtures and Fittings - Purchases","14/02/2019"
"Wolverhampton City Council","http://opendatacommunities.org/id/metropolitan-district-council/wolverhampton","BAKER ROSS","27.47","Education And Access","5970","Materials","14/02/2019"
"Wolverhampton City Council","http://opendatacommunities.org/id/metropolitan-district-council/wolverhampton","AMZN Mktp UK MI75R8BX4","24.56","Education And Access","5942","Materials","14/02/2019"
"Wolverhampton City Council","http://opendatacommunities.org/id/metropolitan-district-council/wolverhampton","AMZN Mktp UK MI0I54H44","4.54","Education And Access","5942","Materials","14/02/2019"
"Wolverhampton City Council","http://opendatacommunities.org/id/metropolitan-district-council/wolverhampton","CARVER/WOLVERHAMPTON/L","269.69","Ground Maintenance East","5211","Materials","14/02/2019"
"Wolverhampton City Council","http://opendatacommunities.org/id/metropolitan-district-council/wolverhampton","SAINSBURYS (2340)","60.30","Wholly Owned Company - Operations","5411","Provisions (Not for resale)","14/02/2019"
"Wolverhampton City Council","http://opendatacommunities.org/id/metropolitan-district-council/wolverhampton","CardtronicsUK","250.00","Headstart Phase 3","6011","Financial Assistance In Exceptional Circ","14/02/2019"
"Wolverhampton City Council","http://opendatacommunities.org/id/metropolitan-district-council/wolverhampton","RINGGO","5.71","Managing Director","7523","Car Allowances","14/02/2019"
"Wolverhampton City Council","http://opendatacommunities.org/id/metropolitan-district-council/wolverhampton","SP   BOUNCEPAD HQ","155.00","Ernest Bold Court","5734","Computing - Purchase of Software","14/02/2019"
"Wolverhampton City Council","http://opendatacommunities.org/id/metropolitan-district-council/wolverhampton","Trainline","93.61","LAC Transitions Team","4112","Public Transport","14/02/2019"
"Wolverhampton City Council","http://opendatacommunities.org/id/metropolitan-district-council/wolverhampton","AMZN MKTP UK MI8MZ0HF4","63.01","Central Baths","5942","Books","14/02/2019"
"Wolverhampton City Council","http://opendatacommunities.org/id/metropolitan-district-council/wolverhampton","Amazon.co.uk MI4IE4HF4","15.24","Central Baths","5969","Equipment - Purchase","14/02/2019"
"Wolverhampton City Council","http://opendatacommunities.org/id/metropolitan-district-council/wolverhampton","AMZN MKTP UK MI5S875U4","17.98","Upper Pendeford Farm Childrens Home","5942","Equipment - Purchase","14/02/2019"
"Wolverhampton City Council","http://opendatacommunities.org/id/metropolitan-district-council/wolverhampton","Virgin Trains","108.35","LAC Team","4112","Public Transport","14/02/2019"
"Wolverhampton City Council","http://opendatacommunities.org/id/metropolitan-district-council/wolverhampton","Virgin Trains","131.25","LAC Team","4112","Client Transport","14/02/2019"
"Wolverhampton City Council","http://opendatacommunities.org/id/metropolitan-district-council/wolverhampton","Virgin Trains","81.00","LAC Team","4112","Public Transport","14/02/2019"
"Wolverhampton City Council","http://opendatacommunities.org/id/metropolitan-district-council/wolverhampton","ARGOS RETAIL GROUP","97.98","EIP Locality 5","5310","Grant Payments","14/02/2019"
"Wolverhampton City Council","http://opendatacommunities.org/id/metropolitan-district-council/wolverhampton","HOME BARGAINS WOLVERHA","18.32","LAC Transitions Team","5251","Client Allowances","14/02/2019"
"Wolverhampton City Council","http://opendatacommunities.org/id/metropolitan-district-council/wolverhampton","POUNDSTRETCHER 703","14.16","LAC Transitions Team","5714","Client Allowances","14/02/2019"
"Wolverhampton City Council","http://opendatacommunities.org/id/metropolitan-district-council/wolverhampton","CARVER/WOLVERHAMPTON/L","9.00","Culwell Street Depot","5211","Materials","14/02/2019"
"Wolverhampton City Council","http://opendatacommunities.org/id/metropolitan-district-council/wolverhampton","CURRYS ONLINE","557.50","Learning Disabilities Management","5732","Equipment - Purchase","14/02/2019"
"Wolverhampton City Council","http://opendatacommunities.org/id/metropolitan-district-council/wolverhampton","ASDA GROCERIES ONLINE","-1.58","Duke Street Bungalows","5411","Provisions (Not for resale)","14/02/2019"
"Wolverhampton City Council","http://opendatacommunities.org/id/metropolitan-district-council/wolverhampton","ASDA GROCERIES ONLINE","92.08","Duke Street Bungalows","5411","Provisions (Not for resale)","14/02/2019"
"Wolverhampton City Council","http://opendatacommunities.org/id/metropolitan-district-council/wolverhampton","Amazon.co.uk MI7Y00HT4","6.99","SEN Sensory Inclusion","5969","Equipment - Purchase","14/02/2019"
"Wolverhampton City Council","http://opendatacommunities.org/id/metropolitan-district-council/wolverhampton","AMZN Mktp UK MI1NJ8HW4","3.24","SEN Sensory Inclusion","5942","Equipment - Purchase","14/02/2019"
"Wolverhampton City Council","http://opendatacommunities.org/id/metropolitan-district-council/wolverhampton","Amazon.co.uk MI0UC3HX4","65.91","SEN Sensory Inclusion","5969","Equipment - Purchase","14/02/2019"
"Wolverhampton City Council","http://opendatacommunities.org/id/metropolitan-district-council/wolverhampton","AMZN Mktp UK MI3M51HW4","2.81","SEN Sensory Inclusion","5942","Equipment - Purchase","14/02/2019"
"Wolverhampton City Council","http://opendatacommunities.org/id/metropolitan-district-council/wolverhampton","TFM FARM & COUNTRY SUP","118.97","Learning Disabilities Management","5399","Equipment - Purchase","14/02/2019"
"Wolverhampton City Council","http://opendatacommunities.org/id/metropolitan-district-council/wolverhampton","Central Taxis Limited","14.40","LAC Team","4121","Client Transport","14/02/2019"
"Wolverhampton City Council","http://opendatacommunities.org/id/metropolitan-district-council/wolverhampton","AMZN MKTP UK MI8BX3HY4","27.12","Environmental Protection","5942","Equipment - Purchase","14/02/2019"
"Wolverhampton City Council","http://opendatacommunities.org/id/metropolitan-district-council/wolverhampton","Trainline","6.26","CAT","4112","Section 17","14/02/2019"
"Wolverhampton City Council","http://opendatacommunities.org/id/metropolitan-district-council/wolverhampton","NATWEST BANK","200.00","Court Team","6011","Section 17","14/02/2019"
"Wolverhampton City Council","http://opendatacommunities.org/id/metropolitan-district-council/wolverhampton","NATWEST BANK","200.00","CAT","6011","Section 17","14/02/2019"
"Wolverhampton City Council","http://opendatacommunities.org/id/metropolitan-district-council/wolverhampton","THE BRITISH ASSOCIATIO","50.00","Workforce Development","8699","Training Expenses","14/02/2019"
"Wolverhampton City Council","http://opendatacommunities.org/id/metropolitan-district-council/wolverhampton","THE BRITISH ASSOCIATIO","50.00","Workforce Development","8699","Training Expenses","14/02/2019"
"Wolverhampton City Council","http://opendatacommunities.org/id/metropolitan-district-council/wolverhampton","Trainline","19.43","Legal Services","4112","Public Transport","14/02/2019"
"Wolverhampton City Council","http://opendatacommunities.org/id/metropolitan-district-council/wolverhampton","AMZN Mktp UK MI46L88W4","3.29","SEN Early Years Team","5942","Equipment - Purchase","14/02/2019"
"Wolverhampton City Council","http://opendatacommunities.org/id/metropolitan-district-council/wolverhampton","AMZN Mktp UK MI0QH7B94","12.80","SEN Early Years Team","5942","Equipment - Purchase","14/02/2019"
"Wolverhampton City Council","http://opendatacommunities.org/id/metropolitan-district-council/wolverhampton","AMZN Mktp UK MI77G1HU4","49.98","SEN Early Years Team","5942","Equipment - Purchase","14/02/2019"
"Wolverhampton City Council","http://opendatacommunities.org/id/metropolitan-district-council/wolverhampton","AMZN Mktp UK MI7N585Q4","3.25","SEN Early Years Team","5942","Equipment - Purchase","14/02/2019"
"Wolverhampton City Council","http://opendatacommunities.org/id/metropolitan-district-council/wolverhampton","AMZN Mktp UK MI42X85O4","3.25","SEN Early Years Team","5942","Equipment - Purchase","14/02/2019"
"Wolverhampton City Council","http://opendatacommunities.org/id/metropolitan-district-council/wolverhampton","AMZN Mktp UK MI30T55X4","4.99","SEN Early Years Team","5942","Equipment - Purchase","14/02/2019"
"Wolverhampton City Council","http://opendatacommunities.org/id/metropolitan-district-council/wolverhampton","J VAN VLIET BIRMINGHAM","224.40","Creative Studies Delivery Area","5399","Materials for resale","14/02/2019"
"Wolverhampton City Council","http://opendatacommunities.org/id/metropolitan-district-council/wolverhampton","J VAN VLIET BIRMINGHAM","36.40","Creative Studies Delivery Area","5399","Materials for resale","14/02/2019"
"Wolverhampton City Council","http://opendatacommunities.org/id/metropolitan-district-council/wolverhampton","AMZ DN-Technology","-7.87","Members Expenses","5999","Equipment - Purchase","14/02/2019"
"Wolverhampton City Council","http://opendatacommunities.org/id/metropolitan-district-council/wolverhampton","AMZN Mktp UK MI2VP2MH4","29.58","Document Centre - General","5942","Equipment - Purchase","13/02/2019"
"Wolverhampton City Council","http://opendatacommunities.org/id/metropolitan-district-council/wolverhampton","WWW.WMCA.CO.UK","56.50","IMPACT","9399","Services - Fees and Charges","13/02/2019"
"Wolverhampton City Council","http://opendatacommunities.org/id/metropolitan-district-council/wolverhampton","WWW.WMCA.CO.UK","56.50","IMPACT","9399","Services - Fees and Charges","13/02/2019"
"Wolverhampton City Council","http://opendatacommunities.org/id/metropolitan-district-council/wolverhampton","WWW.WMCA.CO.UK","56.50","IMPACT","9399","Services - Fees and Charges","13/02/2019"
"Wolverhampton City Council","http://opendatacommunities.org/id/metropolitan-district-council/wolverhampton","THE BOOK SERVICE LTD T","16.00","Art Gallery","5942","Books","13/02/2019"
"Wolverhampton City Council","http://opendatacommunities.org/id/metropolitan-district-council/wolverhampton","WM MORRISON FOOD.COM","102.49","Discretionary Fund","5411","Materials","13/02/2019"
"Wolverhampton City Council","http://opendatacommunities.org/id/metropolitan-district-council/wolverhampton","WWW.ARGOS.CO.UK","103.95","EIP Locality 8","5310","Grant Payments","13/02/2019"
"Wolverhampton City Council","http://opendatacommunities.org/id/metropolitan-district-council/wolverhampton","Trainline","37.34","Childrens with Disabilities Team","4112","Public Transport","13/02/2019"
"Wolverhampton City Council","http://opendatacommunities.org/id/metropolitan-district-council/wolverhampton","AMZN MKTP UK MI8S03MI4","6.52","Towers Outdoor Education Centre","5942","Fixtures and Fittings - Purchases","13/02/2019"
"Wolverhampton City Council","http://opendatacommunities.org/id/metropolitan-district-council/wolverhampton","Amazon.co.uk MI1E39MB4","4.20","Towers Outdoor Education Centre","5969","Fixtures and Fittings - Purchases","13/02/2019"
"Wolverhampton City Council","http://opendatacommunities.org/id/metropolitan-district-council/wolverhampton","WOLVERHAMPTON SST","5.90","Economic Development","4112","Public Transport","13/02/2019"
"Wolverhampton City Council","http://opendatacommunities.org/id/metropolitan-district-council/wolverhampton","EAST MIDLANDS TRAI","20.30","Economic Development","4112","Public Transport","13/02/2019"
"Wolverhampton City Council","http://opendatacommunities.org/id/metropolitan-district-council/wolverhampton","COSTA COFFEE 43036840","5.15","Economic Development","5814","Educ Trips, Holidays, Outings, Activity","13/02/2019"
"Wolverhampton City Council","http://opendatacommunities.org/id/metropolitan-district-council/wolverhampton","DELIVEROO.CO.UK","49.22","B-Safe","5499","Catering","13/02/2019"
"Wolverhampton City Council","http://opendatacommunities.org/id/metropolitan-district-council/wolverhampton","ASDA SUPERSTORE","4.05","Mayoral Expenses","5411","Hospitality","13/02/2019"
"Wolverhampton City Council","http://opendatacommunities.org/id/metropolitan-district-council/wolverhampton","Perton Golf Club Pro S","41.67","Mayor's Charity","7997","Educ Trips, Holidays, Outings, Activity","13/02/2019"
"Wolverhampton City Council","http://opendatacommunities.org/id/metropolitan-district-council/wolverhampton","Trainline","59.22","LAC Transitions Team","4112","Public Transport","13/02/2019"
"Wolverhampton City Council","http://opendatacommunities.org/id/metropolitan-district-council/wolverhampton","Trainline","-8.90","LAC Transitions Team","4112","Public Transport","13/02/2019"
"Wolverhampton City Council","http://opendatacommunities.org/id/metropolitan-district-council/wolverhampton","SCREWFIX DIRECT","29.99","Caretakers Community Centre","5211","Materials","13/02/2019"
"Wolverhampton City Council","http://opendatacommunities.org/id/metropolitan-district-council/wolverhampton","Amazon.co.uk MI6H105V4","55.34","Central Baths","5969","Equipment - Purchase","13/02/2019"
"Wolverhampton City Council","http://opendatacommunities.org/id/metropolitan-district-council/wolverhampton","AMZN MKTP UK MI8QO3M64","50.46","Upper Pendeford Farm Childrens Home","5942","Equipment - Purchase","13/02/2019"
"Wolverhampton City Council","http://opendatacommunities.org/id/metropolitan-district-council/wolverhampton","Virgin Trains","-59.70","LAC Team","4112","Public Transport","13/02/2019"
"Wolverhampton City Council","http://opendatacommunities.org/id/metropolitan-district-council/wolverhampton","POUNDLAND LTD 1463","2.10","Creative Studies Delivery Area","5310","Equipment - Purchase","13/02/2019"
"Wolverhampton City Council","http://opendatacommunities.org/id/metropolitan-district-council/wolverhampton","WM MORRISONS STORE","11.10","Safeguarding Partnership Board","5411","Provisions (Not for resale)","13/02/2019"
"Wolverhampton City Council","http://opendatacommunities.org/id/metropolitan-district-council/wolverhampton","Trainline","79.31","Archives","4112","Public Transport","13/02/2019"
"Wolverhampton City Council","http://opendatacommunities.org/id/metropolitan-district-council/wolverhampton","Trainline","9.92","CIN/CP Social Work Unit - Area 8","4112","Section 17","13/02/2019"
"Wolverhampton City Council","http://opendatacommunities.org/id/metropolitan-district-council/wolverhampton","UnitedArtsGmbH","22.50","Specialist Support Service - North","5734","Services - Fees and Charges","13/02/2019"
"Wolverhampton City Council","http://opendatacommunities.org/id/metropolitan-district-council/wolverhampton","Virgin Trains","144.00","Children & Young People Support Costs","4112","Public Transport","13/02/2019"
"Wolverhampton City Council","http://opendatacommunities.org/id/metropolitan-district-council/wolverhampton","ARGOS WOLVERHAMPTO","32.48","LAC Transitions Team","5310","Client Allowances","13/02/2019"
"Wolverhampton City Council","http://opendatacommunities.org/id/metropolitan-district-council/wolverhampton","Amazon.co.uk MI4HV9594","45.00","Inclusion Support","5969","R4007","13/02/2019"
"Wolverhampton City Council","http://opendatacommunities.org/id/metropolitan-district-council/wolverhampton","SEVERN VALLEY WINES LI","91.19","Civic Centre Catering","5813","Educ Trips, Holidays, Outings, Activity","13/02/2019"
"Wolverhampton City Council","http://opendatacommunities.org/id/metropolitan-district-council/wolverhampton","WWW.WMCA.CO.UK","1,012.50","Legal Services","4112","Public Transport","13/02/2019"
"Wolverhampton City Council","http://opendatacommunities.org/id/metropolitan-district-council/wolverhampton","WWW.BRENTGOV.UK","-12.50","CIN/CP Social Work Unit - Area 3","9399","Services - Fees and Charges","13/02/2019"
"Wolverhampton City Council","http://opendatacommunities.org/id/metropolitan-district-council/wolverhampton","ASDA GROCERIES ONLINE","115.46","Bradley Resource Centre","5411","Provisions (Not for resale)","12/02/2019"
"Wolverhampton City Council","http://opendatacommunities.org/id/metropolitan-district-council/wolverhampton","WWW.WMCA.CO.UK","56.50","IMPACT","9399","Services - Fees and Charges","12/02/2019"
"Wolverhampton City Council","http://opendatacommunities.org/id/metropolitan-district-council/wolverhampton","BLITZ RECYCLING LTD","220.00","Outdoor Events Admin","7394","Equipment - Purchase","12/02/2019"
"Wolverhampton City Council","http://opendatacommunities.org/id/metropolitan-district-council/wolverhampton","SP   HFX AUTOTIME","66.00","Passenger Transport - General","5734","Computing - Purchase of Software","12/02/2019"
"Wolverhampton City Council","http://opendatacommunities.org/id/metropolitan-district-council/wolverhampton","WOLVERHAMPTON CC","2.50","Headstart Phase 3","7523","Parking Fees","12/02/2019"
"Wolverhampton City Council","http://opendatacommunities.org/id/metropolitan-district-council/wolverhampton","CO-OP GROUP 070228","16.30","Towers Outdoor Education Centre","5411","Provisions (Not for resale)","12/02/2019"
"Wolverhampton City Council","http://opendatacommunities.org/id/metropolitan-district-council/wolverhampton","TESCO DELIVERY SAVER2","3.49","Towers Outdoor Education Centre","5968","Provisions (Not for resale)","12/02/2019"
"Wolverhampton City Council","http://opendatacommunities.org/id/metropolitan-district-council/wolverhampton","TESCO STORES 5194","235.42","Towers Outdoor Education Centre","5411","Provisions (Not for resale)","12/02/2019"
"Wolverhampton City Council","http://opendatacommunities.org/id/metropolitan-district-council/wolverhampton","WEST COAST TRAINS","4.30","Economic Development","4112","Public Transport","12/02/2019"
"Wolverhampton City Council","http://opendatacommunities.org/id/metropolitan-district-council/wolverhampton","GOOGLE  ADS9680351324","500.00","Communications & Marketing - General","5817","Computing - Purchase of Software","12/02/2019"
"Wolverhampton City Council","http://opendatacommunities.org/id/metropolitan-district-council/wolverhampton","WWW.POSITIVELEARNING.C","159.00","Business Support Services","8249","Training Expenses","12/02/2019"
"Wolverhampton City Council","http://opendatacommunities.org/id/metropolitan-district-council/wolverhampton","Trainline","130.75","Business Support Services","4112","Public Transport","12/02/2019"
"Wolverhampton City Council","http://opendatacommunities.org/id/metropolitan-district-council/wolverhampton","NAMESCO","6.99","City Direct","4816","Computing - Purchase of Software","12/02/2019"
"Wolverhampton City Council","http://opendatacommunities.org/id/metropolitan-district-council/wolverhampton","ARGOS LTD","169.99","LAC Transitions Team","5310","Client Allowances","12/02/2019"
"Wolverhampton City Council","http://opendatacommunities.org/id/metropolitan-district-council/wolverhampton","Trainline","80.89","Public Health Support Costs","4112","Public Transport","12/02/2019"
"Wolverhampton City Council","http://opendatacommunities.org/id/metropolitan-district-council/wolverhampton","ASDA GEORGE COM LEEDS","92.91","EIP Locality 5","5411","Grant Payments","12/02/2019"
"Wolverhampton City Council","http://opendatacommunities.org/id/metropolitan-district-council/wolverhampton","Amazon.co.uk MI6XF0MF4","7.47","LAC Transitions Team","5969","Accommodation Costs","12/02/2019"
"Wolverhampton City Council","http://opendatacommunities.org/id/metropolitan-district-council/wolverhampton","AMZN Mktp UK MI3C31M74","14.47","SEN Sensory Inclusion","5942","Equipment - Purchase","12/02/2019"
"Wolverhampton City Council","http://opendatacommunities.org/id/metropolitan-district-council/wolverhampton","Amazon.co.uk MI17H7MU4","31.64","SEN Sensory Inclusion","5969","Equipment - Purchase","12/02/2019"
"Wolverhampton City Council","http://opendatacommunities.org/id/metropolitan-district-council/wolverhampton","Amazon.co.uk MI00U2VY4","23.47","SEN Sensory Inclusion","5969","Equipment - Purchase","12/02/2019"
"Wolverhampton City Council","http://opendatacommunities.org/id/metropolitan-district-council/wolverhampton","AMZN MKTP UK MI2LX8VB4","7.49","SEN Sensory Inclusion","5942","Equipment - Purchase","12/02/2019"
"Wolverhampton City Council","http://opendatacommunities.org/id/metropolitan-district-council/wolverhampton","Amazon.co.uk MI54Y7VC4","27.52","SEN Sensory Inclusion","5969","Equipment - Purchase","12/02/2019"
"Wolverhampton City Council","http://opendatacommunities.org/id/metropolitan-district-council/wolverhampton","AMZN Mktp UK MI9T55XE4","30.23","SEN Sensory Inclusion","5942","Equipment - Purchase","12/02/2019"
"Wolverhampton City Council","http://opendatacommunities.org/id/metropolitan-district-council/wolverhampton","WWW.MACLINGROUP.CO.UK","304.90","Education Catering - General Overheads","2842","Cleaning Supplies and Materials","12/02/2019"
"Wolverhampton City Council","http://opendatacommunities.org/id/metropolitan-district-council/wolverhampton","CardtronicsUK","100.00","EIP Locality 3","6011","Grant Payments","12/02/2019"
"Wolverhampton City Council","http://opendatacommunities.org/id/metropolitan-district-council/wolverhampton","ASDA GROCERIES ONLINE","54.36","Ernest Bold Court","5411","Provisions (Not for resale)","12/02/2019"
"Wolverhampton City Council","http://opendatacommunities.org/id/metropolitan-district-council/wolverhampton","CITY OF WOLVERHAMPTON","10.00","Head of Service - CINCP","9399","Services - Professional Fees","12/02/2019"
"Wolverhampton City Council","http://opendatacommunities.org/id/metropolitan-district-council/wolverhampton","CITY OF WOLVERHAMPTON","12.00","Head of Service - CINCP","9399","Services - Professional Fees","12/02/2019"
"Wolverhampton City Council","http://opendatacommunities.org/id/metropolitan-district-council/wolverhampton","PEARSON ED LTD","251.75","SEN Early Years Team","8299","Equipment - Purchase","12/02/2019"
"Wolverhampton City Council","http://opendatacommunities.org/id/metropolitan-district-council/wolverhampton","ROYAL BK OF SCOTLAND","100.00","Duke Street Bungalows","6011","Provisions (Not for resale)","12/02/2019"
"Wolverhampton City Council","http://opendatacommunities.org/id/metropolitan-district-council/wolverhampton","CO-OP GROUP 070362","12.00","Northicote Farm","5411","Provisions (Not for resale)","12/02/2019"
"Wolverhampton City Council","http://opendatacommunities.org/id/metropolitan-district-council/wolverhampton","AMZN MKTP UK MI7IH3VN4","4.99","Northicote Farm","5942","Comms - Mobile Telephones","12/02/2019"
"Wolverhampton City Council","http://opendatacommunities.org/id/metropolitan-district-council/wolverhampton","CARVER/WOLVERHAMPTON/L","9.76","Northicote Farm","5211","Protective Clothing","12/02/2019"
"Wolverhampton City Council","http://opendatacommunities.org/id/metropolitan-district-council/wolverhampton","Allpay  ACCORD HOUSING","237.81","LAC Transitions Team","8398","Client Allowances","11/02/2019"
"Wolverhampton City Council","http://opendatacommunities.org/id/metropolitan-district-council/wolverhampton","PREMIER INN 44536525","226.67","Adoption and Residence Team & Allowances","5812","Educ Trips, Holidays, Outings, Activity","11/02/2019"
"Wolverhampton City Council","http://opendatacommunities.org/id/metropolitan-district-council/wolverhampton","PREMIER INN","368.75","Adoption and Residence Team & Allowances","3811","Services - Supplies & Services to users","11/02/2019"
"Wolverhampton City Council","http://opendatacommunities.org/id/metropolitan-district-council/wolverhampton","POST OFFICE COUNTER","8.60","Adoption and Residence Team & Allowances","9402","Comms - Postage","11/02/2019"
"Wolverhampton City Council","http://opendatacommunities.org/id/metropolitan-district-council/wolverhampton","AMZN MKTP UK MI2N81PH4","9.76","Towers Outdoor Education Centre","5942","Equipment - Purchase","11/02/2019"
"Wolverhampton City Council","http://opendatacommunities.org/id/metropolitan-district-council/wolverhampton","STERMAT CAR AND VA","3,723.15","Towers Outdoor Education Centre","5541","Hire of Vehicles","11/02/2019"
"Wolverhampton City Council","http://opendatacommunities.org/id/metropolitan-district-council/wolverhampton","PREMIER INN 44536445","170.83","Fostering Team & Allowances","5812","Educ Trips, Holidays, Outings, Activity","11/02/2019"
"Wolverhampton City Council","http://opendatacommunities.org/id/metropolitan-district-council/wolverhampton","ASDA SUPERSTORE","2.96","Mayoral Expenses","5411","Hospitality","11/02/2019"
"Wolverhampton City Council","http://opendatacommunities.org/id/metropolitan-district-council/wolverhampton","RESPONSTER PLUS PLAN","15.13","City Direct","5734","Computing - Purchase of Software","11/02/2019"
"Wolverhampton City Council","http://opendatacommunities.org/id/metropolitan-district-council/wolverhampton","HIGHSPEEDTRAINING.CO.U","60.00","Youth Offending Team","8244","Training Expenses","11/02/2019"
"Wolverhampton City Council","http://opendatacommunities.org/id/metropolitan-district-council/wolverhampton","CITY OF WOLVERHAMPTON","65.00","LAC Team","9399","Services - Fees and Charges","11/02/2019"
"Wolverhampton City Council","http://opendatacommunities.org/id/metropolitan-district-council/wolverhampton","Amazon.co.uk MI4039X04","12.34","Central Baths","5969","Equipment - Purchase","11/02/2019"
"Wolverhampton City Council","http://opendatacommunities.org/id/metropolitan-district-council/wolverhampton","ASDA GROCERIES ONLINE",".98","Upper Pendeford Farm Childrens Home","5411","Provisions (Not for resale)","11/02/2019"
"Wolverhampton City Council","http://opendatacommunities.org/id/metropolitan-district-council/wolverhampton","ASDA GROCERIES ONLINE","224.32","Upper Pendeford Farm Childrens Home","5411","Provisions (Not for resale)","11/02/2019"
"Wolverhampton City Council","http://opendatacommunities.org/id/metropolitan-district-council/wolverhampton","PREMIER INN 44536525","84.50","LAC Team","5812","Services - Supplies & Services to users","11/02/2019"
"Wolverhampton City Council","http://opendatacommunities.org/id/metropolitan-district-council/wolverhampton","Virgin Trains","69.70","LAC Team","4112","Public Transport","11/02/2019"
"Wolverhampton City Council","http://opendatacommunities.org/id/metropolitan-district-council/wolverhampton","Virgin Trains","21.70","LAC Team","4112","Public Transport","11/02/2019"
"Wolverhampton City Council","http://opendatacommunities.org/id/metropolitan-district-council/wolverhampton","Virgin Trains","81.00","LAC Team","4112","Public Transport","11/02/2019"
"Wolverhampton City Council","http://opendatacommunities.org/id/metropolitan-district-council/wolverhampton","ASDA GROCERIES ONLINE","5.00","Upper Pendeford Farm Childrens Home","5411","Provisions (Not for resale)","11/02/2019"
"Wolverhampton City Council","http://opendatacommunities.org/id/metropolitan-district-council/wolverhampton","PAYPAL  SIGNWORLD","39.99","Language Studies Delivery Area","8244","Computing - Purchase of Software","11/02/2019"
"Wolverhampton City Council","http://opendatacommunities.org/id/metropolitan-district-council/wolverhampton","Amazon.co.uk MI1ZS2PP4","15.20","Language Studies Delivery Area","5969","Books","11/02/2019"
"Wolverhampton City Council","http://opendatacommunities.org/id/metropolitan-district-council/wolverhampton","Central Taxis Limited","-10.80","MASH","4121","Client Transport","11/02/2019"
"Wolverhampton City Council","http://opendatacommunities.org/id/metropolitan-district-council/wolverhampton","Central Taxis Limited","10.80","MASH","4121","Client Transport","11/02/2019"
"Wolverhampton City Council","http://opendatacommunities.org/id/metropolitan-district-council/wolverhampton","Virgin Trains","100.70","Wolverhampton Indoor and Open Market","4112","Public Transport","11/02/2019"
"Wolverhampton City Council","http://opendatacommunities.org/id/metropolitan-district-council/wolverhampton","Virgin Trains","100.70","Wolverhampton Indoor and Open Market","4112","Public Transport","11/02/2019"
"Wolverhampton City Council","http://opendatacommunities.org/id/metropolitan-district-council/wolverhampton","TVLICENSING.CO.UK","150.50","Blakenhall Resource Centre","7392","Services - General Licences","11/02/2019"
"Wolverhampton City Council","http://opendatacommunities.org/id/metropolitan-district-council/wolverhampton","AMZN MKTP UK MI8FG5G14","34.47","SEN Sensory Inclusion","5942","Equipment - Purchase","11/02/2019"
"Wolverhampton City Council","http://opendatacommunities.org/id/metropolitan-district-council/wolverhampton","Amazon.co.uk MI7MN7X04","23.20","SEN Sensory Inclusion","5969","Equipment - Purchase","11/02/2019"
"Wolverhampton City Council","http://opendatacommunities.org/id/metropolitan-district-council/wolverhampton","AMZN Mktp UK MI76X2GW4","34.48","SEN Sensory Inclusion","5942","Equipment - Purchase","11/02/2019"
"Wolverhampton City Council","http://opendatacommunities.org/id/metropolitan-district-council/wolverhampton","AMZN Mktp UK MI5EW3G74","61.83","SEN Sensory Inclusion","5942","Equipment - Purchase","11/02/2019"
"Wolverhampton City Council","http://opendatacommunities.org/id/metropolitan-district-council/wolverhampton","AMZN MKTP UK MI9YI2G34","14.96","SEN Sensory Inclusion","5942","Equipment - Purchase","11/02/2019"
"Wolverhampton City Council","http://opendatacommunities.org/id/metropolitan-district-council/wolverhampton","AMZN Mktp UK MI9UK2PL4","6.58","SEN Sensory Inclusion","5942","Equipment - Purchase","11/02/2019"
"Wolverhampton City Council","http://opendatacommunities.org/id/metropolitan-district-council/wolverhampton","AMZN MKTP UK MI9PE71F4","69.99","Blakenhall Commty & Healthy Living Ctr","5942","Equipment - R & M","11/02/2019"
"Wolverhampton City Council","http://opendatacommunities.org/id/metropolitan-district-council/wolverhampton","AMZN MKTP UK MI8BB31V4","19.99","Blakenhall Commty & Healthy Living Ctr","5942","Equipment - R & M","11/02/2019"
"Wolverhampton City Council","http://opendatacommunities.org/id/metropolitan-district-council/wolverhampton","ASDA GROCERIES ONLINE","67.03","Ernest Bold Court","5411","Provisions (Not for resale)","11/02/2019"
"Wolverhampton City Council","http://opendatacommunities.org/id/metropolitan-district-council/wolverhampton","SAINSBURYS SACAT 2040","4.60","Ernest Bold Court","5411","Provisions (Not for resale)","11/02/2019"
"Wolverhampton City Council","http://opendatacommunities.org/id/metropolitan-district-council/wolverhampton","AMZN MKTP UK MI2G231L4","17.46","Environmental Crime and Consumer Protect","5942","Equipment - Purchase","11/02/2019"
"Wolverhampton City Council","http://opendatacommunities.org/id/metropolitan-district-council/wolverhampton","AMZN MKTP UK MI0M78PD4","158.19","Environmental Protection","5942","Equipment - Purchase","11/02/2019"
"Wolverhampton City Council","http://opendatacommunities.org/id/metropolitan-district-council/wolverhampton","AMZN Mktp UK MI4HC9184","54.12","Environmental Protection","5942","Equipment - Purchase","11/02/2019"
"Wolverhampton City Council","http://opendatacommunities.org/id/metropolitan-district-council/wolverhampton","NATWEST BANK","200.00","Court Team","6011","Section 17","11/02/2019"
"Wolverhampton City Council","http://opendatacommunities.org/id/metropolitan-district-council/wolverhampton","NATWEST BANK","200.00","CAT","6011","Section 17","11/02/2019"
"Wolverhampton City Council","http://opendatacommunities.org/id/metropolitan-district-council/wolverhampton","WWW.CORAM.ORG.UK","117.00","Workforce Development","8398","Training Expenses","11/02/2019"
"Wolverhampton City Council","http://opendatacommunities.org/id/metropolitan-district-council/wolverhampton","Amazon.co.uk MI3DZ51A4","19.98","Music Support Team","5969","Books","11/02/2019"
"Wolverhampton City Council","http://opendatacommunities.org/id/metropolitan-district-council/wolverhampton","AMZN MKTP UK MI6NP31I4","21.23","EIP Locality 7","5942","Grant Payments","11/02/2019"
"Wolverhampton City Council","http://opendatacommunities.org/id/metropolitan-district-council/wolverhampton","AMZN MKTP UK MI12621E4","129.99","EIP Locality 7","5942","Grant Payments","11/02/2019"
"Wolverhampton City Council","http://opendatacommunities.org/id/metropolitan-district-council/wolverhampton","AMZN Mktp UK MI6481XL4","8.32","Members Expenses","5942","Equipment - Purchase","11/02/2019"
"Wolverhampton City Council","http://opendatacommunities.org/id/metropolitan-district-council/wolverhampton","WEST COAST TRAINS","30.40","Research & Development","4112","Public Transport","11/02/2019"
"Wolverhampton City Council","http://opendatacommunities.org/id/metropolitan-district-council/wolverhampton","ASDA STORE","38.67","-","5411","Provisions (Not for resale)","11/02/2019"
"Wolverhampton City Council","http://opendatacommunities.org/id/metropolitan-district-council/wolverhampton","ASDA GROCERIES ONLINE","-.04","-","5411","Provisions (Not for resale)","11/02/2019"
"Wolverhampton City Council","http://opendatacommunities.org/id/metropolitan-district-council/wolverhampton","ASDA GROCERIES ONLINE","107.46","Bradley Resource Centre","5411","Provisions (Not for resale)","11/02/2019"
"Wolverhampton City Council","http://opendatacommunities.org/id/metropolitan-district-council/wolverhampton","COMPLETE CARE SHOP","98.85","Strategic ICTS (ICT Serv Budget)","5399","Equipment - Purchase","11/02/2019"
"Wolverhampton City Council","http://opendatacommunities.org/id/metropolitan-district-council/wolverhampton","AMZN MKTP UK AMAZON.CO","-4.75","Private Hire Vehicles","5942","Books","11/02/2019"
"Wolverhampton City Council","http://opendatacommunities.org/id/metropolitan-district-council/wolverhampton","AMZN MKTP UK AMAZON.CO","-253.80","Private Hire Vehicles","5942","Books","11/02/2019"
"Wolverhampton City Council","http://opendatacommunities.org/id/metropolitan-district-council/wolverhampton","Trainline","62.58","SEN Special Education Admin","4112","Public Transport","11/02/2019"
"Wolverhampton City Council","http://opendatacommunities.org/id/metropolitan-district-council/wolverhampton","WWW.BIRMINGHAM-REP.CO.","70.50","Youth Offending Team","7922","Educ Trips, Holidays, Outings, Activity","11/02/2019"
"Wolverhampton City Council","http://opendatacommunities.org/id/metropolitan-district-council/wolverhampton","WWW.ARGOS.CO.UK","53.94","Bradley Resource Centre","5310","Equipment - Purchase","11/02/2019"
"Wolverhampton City Council","http://opendatacommunities.org/id/metropolitan-district-council/wolverhampton","B&M RETAIL","81.17","LAC Transitions Team","5310","Client Allowances","08/02/2019"
"Wolverhampton City Council","http://opendatacommunities.org/id/metropolitan-district-council/wolverhampton","Virgin Trains","133.60","Corporate Procurement Unit","4112","Public Transport","08/02/2019"
"Wolverhampton City Council","http://opendatacommunities.org/id/metropolitan-district-council/wolverhampton","EE STORE R501","24.99","Members Expenses","4814","Equipment - Purchase","08/02/2019"
"Wolverhampton City Council","http://opendatacommunities.org/id/metropolitan-district-council/wolverhampton","Trainline","176.54","Strategic ICTS (ICT Serv Budget)","4112","Public Transport","08/02/2019"
"Wolverhampton City Council","http://opendatacommunities.org/id/metropolitan-district-council/wolverhampton","Amazon.co.uk MI1F730Z4","35.98","Strategic ICTS (ICT Serv Budget)","5969","Equipment - Purchase","08/02/2019"
"Wolverhampton City Council","http://opendatacommunities.org/id/metropolitan-district-council/wolverhampton","AMZ Amazon.co.uk","-70.86","Art Gallery","5969","Equipment - Purchase","08/02/2019"
"Wolverhampton City Council","http://opendatacommunities.org/id/metropolitan-district-council/wolverhampton","Virgin Trains","259.30","Quality Assurance & Policies","4112","Public Transport","08/02/2019"
"Wolverhampton City Council","http://opendatacommunities.org/id/metropolitan-district-council/wolverhampton","000002200500000","100.00","Childrens with Disabilities Team","6011","No Recourse to Public Funds","08/02/2019"
"Wolverhampton City Council","http://opendatacommunities.org/id/metropolitan-district-council/wolverhampton","POST OFFICE COUNTER","15.90","Adoption and Residence Team & Allowances","9402","Comms - Postage","08/02/2019"
"Wolverhampton City Council","http://opendatacommunities.org/id/metropolitan-district-council/wolverhampton","WWW.PROAV.CO.UK","40.95","Aldersley Leisure Village","5946","Equipment - Purchase","08/02/2019"
"Wolverhampton City Council","http://opendatacommunities.org/id/metropolitan-district-council/wolverhampton","Virgin Trains","200.10","Fostering Team & Allowances","4112","Public Transport","08/02/2019"
"Wolverhampton City Council","http://opendatacommunities.org/id/metropolitan-district-council/wolverhampton","HIGHSPEEDTRAINING.CO.U","20.00","Youth Offending Team","8244","Training Expenses","08/02/2019"
"Wolverhampton City Council","http://opendatacommunities.org/id/metropolitan-district-council/wolverhampton","Trainline","49.40","LAC Team","4112","Public Transport","08/02/2019"
"Wolverhampton City Council","http://opendatacommunities.org/id/metropolitan-district-council/wolverhampton","WWW.ARGOS.CO.UK","47.93","Business Support Services","5310","Equipment - Purchase","08/02/2019"
"Wolverhampton City Council","http://opendatacommunities.org/id/metropolitan-district-council/wolverhampton","info@taotech.co.uk","137.12","ICT Services","5085","Equipment - Purchase","08/02/2019"
"Wolverhampton City Council","http://opendatacommunities.org/id/metropolitan-district-council/wolverhampton","Amazon.co.uk MI9TN00K4","30.40","Language Studies Delivery Area","5969","Books","08/02/2019"
"Wolverhampton City Council","http://opendatacommunities.org/id/metropolitan-district-council/wolverhampton","COFFEE SUPPLIES DIRECT","8.78","Archives","5499","Catering","08/02/2019"
"Wolverhampton City Council","http://opendatacommunities.org/id/metropolitan-district-council/wolverhampton","LOYD 89 CHURCH STREET","30.00","Ernest Bold Court","6011","Equipment - Purchase","08/02/2019"
"Wolverhampton City Council","http://opendatacommunities.org/id/metropolitan-district-council/wolverhampton","AMZN MKTP UK MI1AM00Q4","36.62","MASH","5942","Equipment - Health and Safety","08/02/2019"
"Wolverhampton City Council","http://opendatacommunities.org/id/metropolitan-district-council/wolverhampton","CUMMINGS BROTHERS LOCK","90.42","Global Budgets","7399","Equipment - R & M","08/02/2019"
"Wolverhampton City Council","http://opendatacommunities.org/id/metropolitan-district-council/wolverhampton","J VAN VLIET BIRMINGHAM","77.75","Creative Studies Delivery Area","5399","Materials for resale","08/02/2019"
"Wolverhampton City Council","http://opendatacommunities.org/id/metropolitan-district-council/wolverhampton","Trainline","59.22","Inclusion Support","4112","Public Transport","08/02/2019"
"Wolverhampton City Council","http://opendatacommunities.org/id/metropolitan-district-council/wolverhampton","MUSIC MARK","30.00","Music Support Team","8699","Services - Professional Fees","08/02/2019"
"Wolverhampton City Council","http://opendatacommunities.org/id/metropolitan-district-council/wolverhampton","AMZN Mktp UK MI6K47114","21.23","Members Expenses","5942","Equipment - Purchase","08/02/2019"
"Wolverhampton City Council","http://opendatacommunities.org/id/metropolitan-district-council/wolverhampton","BLOXWICH  SST","6.17","Economic Development","4112","Public Transport","07/02/2019"
"Wolverhampton City Council","http://opendatacommunities.org/id/metropolitan-district-council/wolverhampton","iStock.com","310.00","Communications & Marketing - General","7333","Marketing \ Non-staff advertising","07/02/2019"
"Wolverhampton City Council","http://opendatacommunities.org/id/metropolitan-district-council/wolverhampton","iStock.com","310.00","Communications & Marketing - General","7333","Marketing \ Non-staff advertising","07/02/2019"
"Wolverhampton City Council","http://opendatacommunities.org/id/metropolitan-district-council/wolverhampton","NAMESCO","34.99","City Direct","4816","Computing - Purchase of Software","07/02/2019"
"Wolverhampton City Council","http://opendatacommunities.org/id/metropolitan-district-council/wolverhampton","WWW.SANDWELL.GOV.UK","30.00","LAC Team","9399","Services - Fees and Charges","07/02/2019"
"Wolverhampton City Council","http://opendatacommunities.org/id/metropolitan-district-council/wolverhampton","SPICY CURRY LONDON","25.87","Managing Director","5812","Educ Trips, Holidays, Outings, Activity","07/02/2019"
"Wolverhampton City Council","http://opendatacommunities.org/id/metropolitan-district-council/wolverhampton","AMZN MKTP UK MI3HD9AR4","21.66","Headstart - Employability","5942","Equipment - Purchase","07/02/2019"
"Wolverhampton City Council","http://opendatacommunities.org/id/metropolitan-district-council/wolverhampton","AMZN MKTP UK MI0204AR4","37.49","Headstart - Employability","5942","Equipment - Purchase","07/02/2019"
"Wolverhampton City Council","http://opendatacommunities.org/id/metropolitan-district-council/wolverhampton","ASDA SUPERSTORE","42.00","CIN/CP Social Work Unit - Area 2","5411","Section 17","07/02/2019"
"Wolverhampton City Council","http://opendatacommunities.org/id/metropolitan-district-council/wolverhampton","MATALAN","12.00","CIN/CP Social Work Unit - Area 2","5691","Section 17","07/02/2019"
"Wolverhampton City Council","http://opendatacommunities.org/id/metropolitan-district-council/wolverhampton","Virgin Trains","42.40","LAC Team","4112","Public Transport","07/02/2019"
"Wolverhampton City Council","http://opendatacommunities.org/id/metropolitan-district-council/wolverhampton","AMZN Mktp UK MI5875EL4","16.83","SEN Sensory Inclusion","5942","Equipment - Purchase","07/02/2019"
"Wolverhampton City Council","http://opendatacommunities.org/id/metropolitan-district-council/wolverhampton","Amazon.co.uk MI7AQ8EW4","126.30","Learning Technologies","5969","Equipment - Purchase","07/02/2019"
"Wolverhampton City Council","http://opendatacommunities.org/id/metropolitan-district-council/wolverhampton","AMZN Mktp UK MI09B3EN4","75.50","Learning Technologies","5942","Computing - Purchase of Hardware","07/02/2019"
"Wolverhampton City Council","http://opendatacommunities.org/id/metropolitan-district-council/wolverhampton","WOLVERHAMPTON T/O","6.90","Education And Access","4112","Public Transport","07/02/2019"
"Wolverhampton City Council","http://opendatacommunities.org/id/metropolitan-district-council/wolverhampton","CITY OF WOLVERHAMPTON","16.00","LAC Team","9399","Financial Assistance In Exceptional Circ","07/02/2019"
"Wolverhampton City Council","http://opendatacommunities.org/id/metropolitan-district-council/wolverhampton","AMZN MKTP UK MI9P07EU4","159.92","City Centre","5942","Equipment - Purchase","07/02/2019"
"Wolverhampton City Council","http://opendatacommunities.org/id/metropolitan-district-council/wolverhampton","WEST MID TRAVEL","436.90","Business Manager - Place","4131","Public Transport","07/02/2019"
"Wolverhampton City Council","http://opendatacommunities.org/id/metropolitan-district-council/wolverhampton","AMZN Mktp UK MI4XI4EV4","22.92","Community Pathways","5942","Stationery","07/02/2019"
"Wolverhampton City Council","http://opendatacommunities.org/id/metropolitan-district-council/wolverhampton","NATWEST BANK","200.00","CAT","6011","No Recourse to Public Funds","07/02/2019"
"Wolverhampton City Council","http://opendatacommunities.org/id/metropolitan-district-council/wolverhampton","NATWEST BANK","200.00","CAT","6011","No Recourse to Public Funds","07/02/2019"
"Wolverhampton City Council","http://opendatacommunities.org/id/metropolitan-district-council/wolverhampton","THE FAIRTRADE FOUN","20.60","Civic Centre Catering","8398","Services - Supplies & Services to users","07/02/2019"
"Wolverhampton City Council","http://opendatacommunities.org/id/metropolitan-district-council/wolverhampton","HOMEBASE LTD 103","73.21","Children & Family Contact Services","5211","Materials","07/02/2019"
"Wolverhampton City Council","http://opendatacommunities.org/id/metropolitan-district-council/wolverhampton","LIDDELL ELECTRICAL DIS","300.00","Street Lighting Maintenance","5065","Books","07/02/2019"
"Wolverhampton City Council","http://opendatacommunities.org/id/metropolitan-district-council/wolverhampton","GEN REGISTER OFFICE","9.25","LAC Transitions Team","9399","Client Allowances","07/02/2019"
"Wolverhampton City Council","http://opendatacommunities.org/id/metropolitan-district-council/wolverhampton","THE IMC GROUP LTD","153.00","Maintenance of Exhibits","5065","Equipment - R & M","07/02/2019"
"Wolverhampton City Council","http://opendatacommunities.org/id/metropolitan-district-council/wolverhampton","RIBA SERVICES","65.33","Bilston Church of England Primary School","5942","Books","07/02/2019"
"Wolverhampton City Council","http://opendatacommunities.org/id/metropolitan-district-council/wolverhampton","BULL DOG APPLIANCES LT","320.83","LAC Transitions Team","5722","Client Allowances","07/02/2019"
"Wolverhampton City Council","http://opendatacommunities.org/id/metropolitan-district-council/wolverhampton","EURODIVANI","250.00","LAC Transitions Team","5712","Client Allowances","07/02/2019"
"Wolverhampton City Council","http://opendatacommunities.org/id/metropolitan-district-council/wolverhampton","EURODIVANI","208.33","LAC Transitions Team","5712","Client Allowances","07/02/2019"
"Wolverhampton City Council","http://opendatacommunities.org/id/metropolitan-district-council/wolverhampton","LIDDELL ELECTRICAL DIS","6.50","Street Lighting Maintenance","5065","Materials","07/02/2019"
"Wolverhampton City Council","http://opendatacommunities.org/id/metropolitan-district-council/wolverhampton","INSPIRE HIRE","258.81","Quality Assurance & Policies","5021","Furniture","07/02/2019"
"Wolverhampton City Council","http://opendatacommunities.org/id/metropolitan-district-council/wolverhampton","WOMBOURNE POOL BAR LTD","4.63","Youth Offending Team","5813","Educ Trips, Holidays, Outings, Activity","07/02/2019"
"Wolverhampton City Council","http://opendatacommunities.org/id/metropolitan-district-council/wolverhampton","MARK BUTLER GOLF ACADE","11.00","Youth Offending Team","8999","Services - Professional Fees","07/02/2019"
"Wolverhampton City Council","http://opendatacommunities.org/id/metropolitan-district-council/wolverhampton","Trainline","121.95","Safeguarding Admin Resource","4112","Public Transport","07/02/2019"
"Wolverhampton City Council","http://opendatacommunities.org/id/metropolitan-district-council/wolverhampton","TESCO STORES 5194","-2.80","Towers Outdoor Education Centre","5411","Provisions (Not for resale)","07/02/2019"
"Wolverhampton City Council","http://opendatacommunities.org/id/metropolitan-district-council/wolverhampton","TESCO STORES 5194","-5.75","Towers Outdoor Education Centre","5411","Provisions (Not for resale)","07/02/2019"
"Wolverhampton City Council","http://opendatacommunities.org/id/metropolitan-district-council/wolverhampton","CO-OP GROUP 070228","7.40","Towers Outdoor Education Centre","5411","Provisions (Not for resale)","07/02/2019"
"Wolverhampton City Council","http://opendatacommunities.org/id/metropolitan-district-council/wolverhampton","TESCO STORES 5194","67.43","Towers Outdoor Education Centre","5411","Provisions (Not for resale)","07/02/2019"
"Wolverhampton City Council","http://opendatacommunities.org/id/metropolitan-district-council/wolverhampton","TESCO STORES 5194","173.33","Towers Outdoor Education Centre","5411","Provisions (Not for resale)","07/02/2019"
"Wolverhampton City Council","http://opendatacommunities.org/id/metropolitan-district-council/wolverhampton","THE INSTITUTE FOR OUTD","136.67","Towers Outdoor Education Centre","8398","Equipment - Purchase","07/02/2019"
"Wolverhampton City Council","http://opendatacommunities.org/id/metropolitan-district-council/wolverhampton","HARLECH FOODSERVICE LT","136.65","Towers Outdoor Education Centre","5422","Provisions (Not for resale)","07/02/2019"
"Wolverhampton City Council","http://opendatacommunities.org/id/metropolitan-district-council/wolverhampton","O E METCALFE","239.61","Towers Outdoor Education Centre","5499","Provisions (Not for resale)","07/02/2019"
"Wolverhampton City Council","http://opendatacommunities.org/id/metropolitan-district-council/wolverhampton","FUEL CARD SERVICES LTD","443.25","Towers Outdoor Education Centre","7399","Petrol","07/02/2019"
"Wolverhampton City Council","http://opendatacommunities.org/id/metropolitan-district-council/wolverhampton","SPAR SIOP TANDDERWEN","199.34","Towers Outdoor Education Centre","5411","Provisions (Not for resale)","07/02/2019"
"Wolverhampton City Council","http://opendatacommunities.org/id/metropolitan-district-council/wolverhampton","RICHARD WILLIAMS","2.92","Towers Outdoor Education Centre","5211","Fixtures and Fittings - Purchases","07/02/2019"
"Wolverhampton City Council","http://opendatacommunities.org/id/metropolitan-district-council/wolverhampton","HN NUTTALL LTD","465.88","Towers Outdoor Education Centre","5085","Provisions (Not for resale)","07/02/2019"
"Wolverhampton City Council","http://opendatacommunities.org/id/metropolitan-district-council/wolverhampton","C L JONES HEAD OFFICE","324.41","Towers Outdoor Education Centre","5211","Fixtures and Fittings - Purchases","07/02/2019"
"Wolverhampton City Council","http://opendatacommunities.org/id/metropolitan-district-council/wolverhampton","WHITEMORE REANS LTD","23.92","Aldersley Leisure Village","5251","Equipment - Purchase","07/02/2019"
"Wolverhampton City Council","http://opendatacommunities.org/id/metropolitan-district-council/wolverhampton","B&M RETAIL LTD","16.66","LAC Transitions Team","5310","Client Allowances","06/02/2019"
"Wolverhampton City Council","http://opendatacommunities.org/id/metropolitan-district-council/wolverhampton","B&M RETAIL LTD","6.66","LAC Transitions Team","5310","Accommodation Costs","06/02/2019"
"Wolverhampton City Council","http://opendatacommunities.org/id/metropolitan-district-council/wolverhampton","ARGOS LTD","12.50","LAC Transitions Team","5310","Client Allowances","06/02/2019"
"Wolverhampton City Council","http://opendatacommunities.org/id/metropolitan-district-council/wolverhampton","WWW.ARGOS.CO.UK","40.77","Box Office Administration","5310","Equipment - Purchase","06/02/2019"
"Wolverhampton City Council","http://opendatacommunities.org/id/metropolitan-district-council/wolverhampton","NOVOTEL HOTELS","363.33","Strategic ICTS (ICT Serv Budget)","3642","Conference Expenses","06/02/2019"
"Wolverhampton City Council","http://opendatacommunities.org/id/metropolitan-district-council/wolverhampton","WOLVERHAMPTON T/O","14.30","Research & Development","4112","Public Transport","06/02/2019"
"Wolverhampton City Council","http://opendatacommunities.org/id/metropolitan-district-council/wolverhampton","WILKO RETAIL LIMIT","20.00","Art Gallery","5722","Equipment - Purchase","06/02/2019"
"Wolverhampton City Council","http://opendatacommunities.org/id/metropolitan-district-council/wolverhampton","WM MORRISON FOOD.COM","122.28","Discretionary Fund","5411","Materials","06/02/2019"
"Wolverhampton City Council","http://opendatacommunities.org/id/metropolitan-district-council/wolverhampton","NATWEST BANK","200.00","CAT","6011","No Recourse to Public Funds","06/02/2019"
"Wolverhampton City Council","http://opendatacommunities.org/id/metropolitan-district-council/wolverhampton","AMZN Mktp UK MI6OA6TT4","11.45","EIP Locality 8","5942","Equipment - Purchase","06/02/2019"
"Wolverhampton City Council","http://opendatacommunities.org/id/metropolitan-district-council/wolverhampton","000002200500000","250.00","Childrens with Disabilities Team","6011","No Recourse to Public Funds","06/02/2019"
"Wolverhampton City Council","http://opendatacommunities.org/id/metropolitan-district-council/wolverhampton","WWW.GEAR4MUSIC.COM","83.99","Aldersley Leisure Village","5733","Equipment - Purchase","06/02/2019"
"Wolverhampton City Council","http://opendatacommunities.org/id/metropolitan-district-council/wolverhampton","CIMSPA","160.00","Aldersley Leisure Village","8699","Subscriptions","06/02/2019"
"Wolverhampton City Council","http://opendatacommunities.org/id/metropolitan-district-council/wolverhampton","CardtronicsUK","50.00","Headstart Phase 3","6011","Financial Assistance In Exceptional Circ","06/02/2019"
"Wolverhampton City Council","http://opendatacommunities.org/id/metropolitan-district-council/wolverhampton","000002200500000","50.00","Headstart - Young People Engagement","6011","Financial Assistance In Exceptional Circ","06/02/2019"
"Wolverhampton City Council","http://opendatacommunities.org/id/metropolitan-district-council/wolverhampton","CABVISION NETWORK","19.83","Headstart - Young People Engagement","4121","Client Transport","06/02/2019"
"Wolverhampton City Council","http://opendatacommunities.org/id/metropolitan-district-council/wolverhampton","HIGHSPEEDTRAINING.CO.U","20.00","Youth Offending Team","8244","Training Expenses","06/02/2019"
"Wolverhampton City Council","http://opendatacommunities.org/id/metropolitan-district-council/wolverhampton","HMCOURTS-SERVICE.G","20.00","LAC Transitions Team","9222","Client Allowances","06/02/2019"
"Wolverhampton City Council","http://opendatacommunities.org/id/metropolitan-district-council/wolverhampton","ARGOS RETAIL GROUP","68.98","EIP Locality 5","5310","Grant Payments","06/02/2019"
"Wolverhampton City Council","http://opendatacommunities.org/id/metropolitan-district-council/wolverhampton","WCC MOTO PAYMENTS","25.00","EIP Locality 5","9399","Grant Payments","06/02/2019"
"Wolverhampton City Council","http://opendatacommunities.org/id/metropolitan-district-council/wolverhampton","POUNDLAND LTD 1463","9.05","Foundation Studies","5310","Equipment - Purchase","06/02/2019"
"Wolverhampton City Council","http://opendatacommunities.org/id/metropolitan-district-council/wolverhampton","WILKO RETAIL LIMIT","2.00","Foundation Studies","5722","Equipment - Purchase","06/02/2019"
"Wolverhampton City Council","http://opendatacommunities.org/id/metropolitan-district-council/wolverhampton","TFW RAIL SERVICES","8.00","Curatorial - Cultural Learning","4112","Public Transport","06/02/2019"
"Wolverhampton City Council","http://opendatacommunities.org/id/metropolitan-district-council/wolverhampton","AMZN MKTP UK MI1UW2AG4","62.50","Headstart - Employability","5942","Equipment - Purchase","06/02/2019"
"Wolverhampton City Council","http://opendatacommunities.org/id/metropolitan-district-council/wolverhampton","ADVANTAGE HOTELS(WALSA","146.67","CIN/CP Social Work Unit - Area 2","7011","Section 17","06/02/2019"
"Wolverhampton City Council","http://opendatacommunities.org/id/metropolitan-district-council/wolverhampton","POST OFFICE COUNTER","40.00","Head of Strategic Commissioning � People","9402","Comms - Postage","06/02/2019"
"Wolverhampton City Council","http://opendatacommunities.org/id/metropolitan-district-council/wolverhampton","COMPANY CARDS LTD","323.10","Technical Support","2741","Publications","06/02/2019"
"Wolverhampton City Council","http://opendatacommunities.org/id/metropolitan-district-council/wolverhampton","WWW.WMCA.CO.UK","675.00","Business Manager - Place","4112","Public Transport","06/02/2019"
"Wolverhampton City Council","http://opendatacommunities.org/id/metropolitan-district-council/wolverhampton","AMZN Mktp UK MI9MA9A04","10.48","Waste Coll & Recycling Serv General","5942","Equipment - Purchase","06/02/2019"
"Wolverhampton City Council","http://opendatacommunities.org/id/metropolitan-district-council/wolverhampton","AMZN Mktp UK MI0ZO0A94","66.66","Private Sector Housing","5942","Equipment - Purchase","06/02/2019"
"Wolverhampton City Council","http://opendatacommunities.org/id/metropolitan-district-council/wolverhampton","RIBA SERVICES","120.00","Wholly Owned Company - Operations","5942","Books","06/02/2019"
"Wolverhampton City Council","http://opendatacommunities.org/id/metropolitan-district-council/wolverhampton","VIRGIN MEDIS PYMTS","7.50","Community Enablement","4814","Comms - Telephone Call charges","06/02/2019"
"Wolverhampton City Council","http://opendatacommunities.org/id/metropolitan-district-council/wolverhampton","KCJONESCONF","20.83","Central Training","7922","Training Expenses","06/02/2019"
"Wolverhampton City Council","http://opendatacommunities.org/id/metropolitan-district-council/wolverhampton","DUDLEY MBC  INTERN","25.00","Head of Service - CINCP","8999","Services - Professional Fees","06/02/2019"
"Wolverhampton City Council","http://opendatacommunities.org/id/metropolitan-district-council/wolverhampton","J VAN VLIET BIRMINGHAM","47.45","Creative Studies Delivery Area","5399","Materials","06/02/2019"
"Wolverhampton City Council","http://opendatacommunities.org/id/metropolitan-district-council/wolverhampton","J VAN VLIET BIRMINGHAM","262.90","Creative Studies Delivery Area","5399","Materials for resale","06/02/2019"
"Wolverhampton City Council","http://opendatacommunities.org/id/metropolitan-district-council/wolverhampton","Amazon.co.uk MI0YN7T04","14.52","Landscape","5969","Equipment - Purchase","06/02/2019"
"Wolverhampton City Council","http://opendatacommunities.org/id/metropolitan-district-council/wolverhampton","SPORTSDIRECT 231","23.33","LAC Transitions Team","5941","Client Allowances","06/02/2019"
"Wolverhampton City Council","http://opendatacommunities.org/id/metropolitan-district-council/wolverhampton","PIZZA HUT 371","25.87","LAC Transitions Team","5812","Client Allowances","06/02/2019"
"Wolverhampton City Council","http://opendatacommunities.org/id/metropolitan-district-council/wolverhampton","SAINSBURYS SACAT 2040","18.00","LAC Transitions Team","5411","Client Allowances","06/02/2019"
"Wolverhampton City Council","http://opendatacommunities.org/id/metropolitan-district-council/wolverhampton","AMZN Mktp UK MI0QX3TK4","7.90","Members Expenses","5942","Equipment - Purchase","06/02/2019"
"Wolverhampton City Council","http://opendatacommunities.org/id/metropolitan-district-council/wolverhampton","AMZN MKTP UK MI2Y993K4","11.92","Civic Centre","5942","Books","05/02/2019"
"Wolverhampton City Council","http://opendatacommunities.org/id/metropolitan-district-council/wolverhampton","ASDA GROCERIES ONLINE","-2.26","-","5411","Provisions (Not for resale)","05/02/2019"
"Wolverhampton City Council","http://opendatacommunities.org/id/metropolitan-district-council/wolverhampton","ASDA GROCERIES ONLINE","95.21","Bradley Resource Centre","5411","Provisions (Not for resale)","05/02/2019"
"Wolverhampton City Council","http://opendatacommunities.org/id/metropolitan-district-council/wolverhampton","CURRYS ONLINE","624.17","IMPACT","5732","Equipment - Purchase","05/02/2019"
"Wolverhampton City Council","http://opendatacommunities.org/id/metropolitan-district-council/wolverhampton","HIGHSTREET VOCUHERS","504.25","IMPACT","8641","Educ Trips, Holidays, Outings, Activity","05/02/2019"
"Wolverhampton City Council","http://opendatacommunities.org/id/metropolitan-district-council/wolverhampton","AMZN Mktp UK MI6044374","162.99","IMPACT","5942","Books","05/02/2019"
"Wolverhampton City Council","http://opendatacommunities.org/id/metropolitan-district-council/wolverhampton","NATWEST BANK","200.00","CAT","6011","No Recourse to Public Funds","05/02/2019"
"Wolverhampton City Council","http://opendatacommunities.org/id/metropolitan-district-council/wolverhampton","WWW.ARGOS.CO.UK","193.94","LAC Transitions Team","5310","Equipment - Purchase","05/02/2019"
"Wolverhampton City Council","http://opendatacommunities.org/id/metropolitan-district-council/wolverhampton","WM MORRISONS STORE","23.00","EIP Locality 2","5411","Provisions (Not for resale)","05/02/2019"
"Wolverhampton City Council","http://opendatacommunities.org/id/metropolitan-district-council/wolverhampton","Trainline","36.00","Childrens with Disabilities Team","4112","Section 17","05/02/2019"
"Wolverhampton City Council","http://opendatacommunities.org/id/metropolitan-district-council/wolverhampton","HALFORDS 0549","40.40","Towers Outdoor Education Centre","5940","Fixtures and Fittings - Purchases","05/02/2019"
"Wolverhampton City Council","http://opendatacommunities.org/id/metropolitan-district-council/wolverhampton","Amazon.co.uk MI3UZ8TC4","57.48","Towers Outdoor Education Centre","5969","Equipment - Purchase","05/02/2019"
"Wolverhampton City Council","http://opendatacommunities.org/id/metropolitan-district-council/wolverhampton","AMZN Mktp UK MI4X62JB4","25.62","Towers Outdoor Education Centre","5942","Equipment - Purchase","05/02/2019"
"Wolverhampton City Council","http://opendatacommunities.org/id/metropolitan-district-council/wolverhampton","AMZN Mktp UK MI1KZ6374","12.48","Education And Access","5942","Materials","05/02/2019"
"Wolverhampton City Council","http://opendatacommunities.org/id/metropolitan-district-council/wolverhampton","HSBC CASH MACHINE","100.00","Headstart - Young People Engagement","6011","Financial Assistance In Exceptional Circ","05/02/2019"
"Wolverhampton City Council","http://opendatacommunities.org/id/metropolitan-district-council/wolverhampton","WWW.WOLVERHAMPTON.GOV.","72.71","LAC Transitions Team","9399","Client Allowances","05/02/2019"
"Wolverhampton City Council","http://opendatacommunities.org/id/metropolitan-district-council/wolverhampton","WWW.WOLVERHAMPTON.GOV.","69.00","LAC Transitions Team","9399","Client Allowances","05/02/2019"
"Wolverhampton City Council","http://opendatacommunities.org/id/metropolitan-district-council/wolverhampton","AMZN Mktp UK MI8794JC4","99.90","Strategic ICTS (ICT Serv Budget)","5942","Computing - Purchase of Hardware","05/02/2019"
"Wolverhampton City Council","http://opendatacommunities.org/id/metropolitan-district-council/wolverhampton","WWW.DERBY.GOV.UK","11.00","LAC Team","9399","Financial Assistance In Exceptional Circ","05/02/2019"
"Wolverhampton City Council","http://opendatacommunities.org/id/metropolitan-district-council/wolverhampton","AMZN Mktp UK MI4Y77JH4","11.25","Bilston Public Open Space (ERDF)","5942","Stationery","05/02/2019"
"Wolverhampton City Council","http://opendatacommunities.org/id/metropolitan-district-council/wolverhampton","JOHNSTONES DEC CENTRE","48.48","Wolverhampton Indoor and Open Market","5231","Materials","05/02/2019"
"Wolverhampton City Council","http://opendatacommunities.org/id/metropolitan-district-council/wolverhampton","Trainline","28.64","CIN/CP Social Work Unit - Area 8","4112","Section 17","05/02/2019"
"Wolverhampton City Council","http://opendatacommunities.org/id/metropolitan-district-council/wolverhampton","123-REG.CO.UK","39.96","Technical Support","4816","Computing - Purchase of Software","05/02/2019"
"Wolverhampton City Council","http://opendatacommunities.org/id/metropolitan-district-council/wolverhampton","B & Q 1243","25.00","Learning Disabilities Management","5211","Equipment - R & M","05/02/2019"
"Wolverhampton City Council","http://opendatacommunities.org/id/metropolitan-district-council/wolverhampton","ASDA GROCERIES ONLINE","51.56","Ernest Bold Court","5411","Provisions (Not for resale)","05/02/2019"
"Wolverhampton City Council","http://opendatacommunities.org/id/metropolitan-district-council/wolverhampton","Trainline","260.48","Wholly Owned Company - Operations","4112","Public Transport","05/02/2019"
"Wolverhampton City Council","http://opendatacommunities.org/id/metropolitan-district-council/wolverhampton","BASPCAN","85.00","Workforce Development","8398","Training Expenses","05/02/2019"
"Wolverhampton City Council","http://opendatacommunities.org/id/metropolitan-district-council/wolverhampton","Trainline","17.25","Inclusion Support","4112","Public Transport","05/02/2019"
"Wolverhampton City Council","http://opendatacommunities.org/id/metropolitan-district-council/wolverhampton","GEN REGISTER OFFICE","7.71","LAC Transitions Team","9399","Client Allowances","05/02/2019"
"Wolverhampton City Council","http://opendatacommunities.org/id/metropolitan-district-council/wolverhampton","PO LOW HILL 1592","100.00","EIP Locality 7","6011","Grant Payments","05/02/2019"
"Wolverhampton City Council","http://opendatacommunities.org/id/metropolitan-district-council/wolverhampton","PO LOW HILL 1592","100.00","EIP Locality 7","6011","Grant Payments","05/02/2019"
"Wolverhampton City Council","http://opendatacommunities.org/id/metropolitan-district-council/wolverhampton","LATIFS","80.12","Key to Inspiration","5310","Equipment - Purchase","04/02/2019"
"Wolverhampton City Council","http://opendatacommunities.org/id/metropolitan-district-council/wolverhampton","AMZN MKTP UK MI61B8NR4","17.04","Property Services - Business Support","5942","Stationery","04/02/2019"
"Wolverhampton City Council","http://opendatacommunities.org/id/metropolitan-district-council/wolverhampton","ASDA GROCERIES ONLINE","80.85","Bradley Resource Centre","5411","Provisions (Not for resale)","04/02/2019"
"Wolverhampton City Council","http://opendatacommunities.org/id/metropolitan-district-council/wolverhampton","WWW.WMCA.CO.UK","56.50","IMPACT","9399","Services - Fees and Charges","04/02/2019"
"Wolverhampton City Council","http://opendatacommunities.org/id/metropolitan-district-council/wolverhampton","BEATSABAR MUSIC PROJEC","200.00","Youth Offending Team","5733","Equipment - Purchase","04/02/2019"
"Wolverhampton City Council","http://opendatacommunities.org/id/metropolitan-district-council/wolverhampton","BEATSABAR MUSIC PROJEC","77.03","Youth Offending Team","5733","Equipment - Purchase","04/02/2019"
"Wolverhampton City Council","http://opendatacommunities.org/id/metropolitan-district-council/wolverhampton","Trainline","29.55","Court Team","4112","Public Transport","04/02/2019"
"Wolverhampton City Council","http://opendatacommunities.org/id/metropolitan-district-council/wolverhampton","POST OFFICE COUNTER","8.04","EIP Locality 3","9402","Comms - Postage","04/02/2019"
"Wolverhampton City Council","http://opendatacommunities.org/id/metropolitan-district-council/wolverhampton","WM MORRISONS STORE","15.94","EIP Locality 3","5411","Provisions (Not for resale)","04/02/2019"
"Wolverhampton City Council","http://opendatacommunities.org/id/metropolitan-district-council/wolverhampton","PREMIER INN","342.92","Adoption and Residence Team & Allowances","3811","Services - Supplies & Services to users","04/02/2019"
"Wolverhampton City Council","http://opendatacommunities.org/id/metropolitan-district-council/wolverhampton","O E METCALFE","196.95","Towers Outdoor Education Centre","5499","Provisions (Not for resale)","04/02/2019"
"Wolverhampton City Council","http://opendatacommunities.org/id/metropolitan-district-council/wolverhampton","BETTWS MOTORS LIMITED","67.26","Towers Outdoor Education Centre","7538","Equipment - Purchase","04/02/2019"
"Wolverhampton City Council","http://opendatacommunities.org/id/metropolitan-district-council/wolverhampton","SPAR SIOP TANDDERWEN","82.27","Towers Outdoor Education Centre","5411","Provisions (Not for resale)","04/02/2019"
"Wolverhampton City Council","http://opendatacommunities.org/id/metropolitan-district-council/wolverhampton","Trainline","22.94","Electoral Registration","4112","Public Transport","04/02/2019"
"Wolverhampton City Council","http://opendatacommunities.org/id/metropolitan-district-council/wolverhampton","AMZN Mktp UK MI69L4ZX4","15.82","Education And Access","5942","Materials","04/02/2019"
"Wolverhampton City Council","http://opendatacommunities.org/id/metropolitan-district-council/wolverhampton","AMZN Mktp UK MI5JN8LG4","13.21","Education And Access","5942","Materials","04/02/2019"
"Wolverhampton City Council","http://opendatacommunities.org/id/metropolitan-district-council/wolverhampton","AMZN Mktp UK MI1H98LD4","8.34","Education And Access","5942","Materials","04/02/2019"
"Wolverhampton City Council","http://opendatacommunities.org/id/metropolitan-district-council/wolverhampton","Trainline","58.40","Research & Development","4112","Public Transport","04/02/2019"
"Wolverhampton City Council","http://opendatacommunities.org/id/metropolitan-district-council/wolverhampton","COSTA COFFEE 43040010","4.29","Economic Development","5814","Educ Trips, Holidays, Outings, Activity","04/02/2019"
"Wolverhampton City Council","http://opendatacommunities.org/id/metropolitan-district-council/wolverhampton","GOOGLE  ADS9680351324","500.00","Communications & Marketing - General","5968","Subscriptions","04/02/2019"
"Wolverhampton City Council","http://opendatacommunities.org/id/metropolitan-district-council/wolverhampton","PRODUCT SUPPORT AG","6.66","Headstart - Young People Engagement","5968","Computing - Maint Agreements","04/02/2019"
"Wolverhampton City Council","http://opendatacommunities.org/id/metropolitan-district-council/wolverhampton","PRODUCT SUPPORT AG","6.66","Headstart - Young People Engagement","5968","Computing - Maint Agreements","04/02/2019"
"Wolverhampton City Council","http://opendatacommunities.org/id/metropolitan-district-council/wolverhampton","HIGHSPEEDTRAINING.CO.U","20.00","Youth Offending Team","8244","Training Expenses","04/02/2019"
"Wolverhampton City Council","http://opendatacommunities.org/id/metropolitan-district-council/wolverhampton","DUNELM (SOFT FURNISHIN","8.48","Cemeteries","5714","Equipment - Purchase","04/02/2019"
"Wolverhampton City Council","http://opendatacommunities.org/id/metropolitan-district-council/wolverhampton","SCREWFIX DIRECT LT","19.98","Cemeteries","5211","Materials","04/02/2019"
"Wolverhampton City Council","http://opendatacommunities.org/id/metropolitan-district-council/wolverhampton","Amazon.co.uk MI1DT6324","18.32","Strategic ICTS (ICT Serv Budget)","5969","Equipment - Purchase","04/02/2019"
"Wolverhampton City Council","http://opendatacommunities.org/id/metropolitan-district-council/wolverhampton","UOD - KR SALES - INCOM","142.32","LAC Transitions Team","8220","Client Allowances","04/02/2019"
"Wolverhampton City Council","http://opendatacommunities.org/id/metropolitan-district-council/wolverhampton","BEATSABAR MUSIC PROJEC","80.00","Foundation Studies","5733","Room Hire","04/02/2019"
"Wolverhampton City Council","http://opendatacommunities.org/id/metropolitan-district-council/wolverhampton","ASDA GROCERIES ONLINE","50.37","Creative Studies Delivery Area","5411","Provisions (Not for resale)","04/02/2019"
"Wolverhampton City Council","http://opendatacommunities.org/id/metropolitan-district-council/wolverhampton","SAINSBURYS LOC4471","8.92","Literature Festival","5411","Provisions (Not for resale)","04/02/2019"
"Wolverhampton City Council","http://opendatacommunities.org/id/metropolitan-district-council/wolverhampton","YOUNG`S SHOE REPAIRS L","200.00","Wolverhampton Indoor and Open Market","7251","Fixtures and Fittings - R&M","04/02/2019"
"Wolverhampton City Council","http://opendatacommunities.org/id/metropolitan-district-council/wolverhampton","Amazon.co.uk MI8PI4NA4","52.99","SEN Sensory Inclusion","5969","Equipment - Purchase","04/02/2019"
"Wolverhampton City Council","http://opendatacommunities.org/id/metropolitan-district-council/wolverhampton","TWINKL LTD","84.90","SEN Sensory Inclusion","8699","Equipment - Purchase","04/02/2019"
"Wolverhampton City Council","http://opendatacommunities.org/id/metropolitan-district-council/wolverhampton","AMZN Mktp UK MI7Y86LU4","9.93","SEN Sensory Inclusion","5942","Equipment - Purchase","04/02/2019"
"Wolverhampton City Council","http://opendatacommunities.org/id/metropolitan-district-council/wolverhampton","Wix.com","93.13","Technical Support","5817","Computing - Purchase of Software","04/02/2019"
"Wolverhampton City Council","http://opendatacommunities.org/id/metropolitan-district-council/wolverhampton","AMZN Mktp UK MI8QU7N04","12.44","Technical Support","5942","Equipment - Purchase","04/02/2019"
"Wolverhampton City Council","http://opendatacommunities.org/id/metropolitan-district-council/wolverhampton","Amazon.co.uk MI2TS6ZW4","6.64","Global Budgets","5969","Books","04/02/2019"
"Wolverhampton City Council","http://opendatacommunities.org/id/metropolitan-district-council/wolverhampton","AMZN MKTP UK MI3ED6LJ4","6.30","Global Budgets","5942","Books","04/02/2019"
"Wolverhampton City Council","http://opendatacommunities.org/id/metropolitan-district-council/wolverhampton","SCREWFIX DIRECT LT","11.66","Independant Living Services","5211","Cleaning Supplies and Materials","04/02/2019"
"Wolverhampton City Council","http://opendatacommunities.org/id/metropolitan-district-council/wolverhampton","SumUp   Mackay plumbin","73.50","LAC Team","1520","Financial Assistance In Exceptional Circ","04/02/2019"
"Wolverhampton City Council","http://opendatacommunities.org/id/metropolitan-district-council/wolverhampton","ASDA GROCERIES ONLINE","-.04","Ernest Bold Court","5411","Provisions (Not for resale)","04/02/2019"
"Wolverhampton City Council","http://opendatacommunities.org/id/metropolitan-district-council/wolverhampton","ASDA GROCERIES ONLINE","53.66","Ernest Bold Court","5411","Provisions (Not for resale)","04/02/2019"
"Wolverhampton City Council","http://opendatacommunities.org/id/metropolitan-district-council/wolverhampton","AMZN Mktp UK MI09L33G4","12.22","Inclusion Support","5942","Stationery","04/02/2019"
"Wolverhampton City Council","http://opendatacommunities.org/id/metropolitan-district-council/wolverhampton","WWW.PRINTERBASE.CO.UK","825.93","Parking Enforcement","5999","Equipment - Purchase","04/02/2019"
"Wolverhampton City Council","http://opendatacommunities.org/id/metropolitan-district-council/wolverhampton","PAPYRUS (UK)","55.00","Workforce Development","8398","Training Expenses","04/02/2019"
"Wolverhampton City Council","http://opendatacommunities.org/id/metropolitan-district-council/wolverhampton","RICS COM GBP CYBS","42.00","Central Training","8699","Training Expenses","04/02/2019"
"Wolverhampton City Council","http://opendatacommunities.org/id/metropolitan-district-council/wolverhampton","RICS COM GBP CYBS","47.25","Central Training","8699","Training Expenses","04/02/2019"
"Wolverhampton City Council","http://opendatacommunities.org/id/metropolitan-district-council/wolverhampton","RICS COM GBP CYBS","47.25","Central Training","8699","Training Expenses","04/02/2019"
"Wolverhampton City Council","http://opendatacommunities.org/id/metropolitan-district-council/wolverhampton","CHARTERED MNGMENT","35.00","Central Training","5968","Training Expenses","04/02/2019"
"Wolverhampton City Council","http://opendatacommunities.org/id/metropolitan-district-council/wolverhampton","Oyster Auto-top up","20.00","Legal Services","4112","Public Transport","04/02/2019"
"Wolverhampton City Council","http://opendatacommunities.org/id/metropolitan-district-council/wolverhampton","CUMMINGS BROTHERS LOCK","6.45","Music Support Team","7399","Stationery","04/02/2019"
"Wolverhampton City Council","http://opendatacommunities.org/id/metropolitan-district-council/wolverhampton","ASDA GROCERIES ONLINE","244.25","Duke Street Bungalows","5411","Provisions (Not for resale)","04/02/2019"
"Wolverhampton City Council","http://opendatacommunities.org/id/metropolitan-district-council/wolverhampton","PARKINGEYE LTD","35.00","Delivery & OCE Development","9399","Services - Fees and Charges","04/02/2019"
"Wolverhampton City Council","http://opendatacommunities.org/id/metropolitan-district-council/wolverhampton","Trainline","187.73","Delivery & OCE Development","4112","Public Transport","04/02/2019"
"Wolverhampton City Council","http://opendatacommunities.org/id/metropolitan-district-council/wolverhampton","WWW.BRENTGOV.UK","12.50","CIN/CP Social Work Unit - Area 3","9399","Section 17","04/02/2019"
"Wolverhampton City Council","http://opendatacommunities.org/id/metropolitan-district-council/wolverhampton","SAINSBURYS (2340)","30.00","Members Expenses","5411","Equipment - Purchase","04/02/2019"
"Wolverhampton City Council","http://opendatacommunities.org/id/metropolitan-district-council/wolverhampton","Amazon.co.uk MI5TD84K4","36.00","Archives","5969","Books","01/02/2019"
"Wolverhampton City Council","http://opendatacommunities.org/id/metropolitan-district-council/wolverhampton","Virgin Trains","79.35","Service Director City Economy","4112","Public Transport","01/02/2019"
"Wolverhampton City Council","http://opendatacommunities.org/id/metropolitan-district-council/wolverhampton","TESCO STORES 5397","3.30","EIP Locality 1","5411","Provisions (Not for resale)","01/02/2019"
"Wolverhampton City Council","http://opendatacommunities.org/id/metropolitan-district-council/wolverhampton","Amazon.co.uk MI57J14W4","28.99","SEN Sensory Inclusion","5969","Equipment - Purchase","01/02/2019"
"Wolverhampton City Council","http://opendatacommunities.org/id/metropolitan-district-council/wolverhampton","Amazon.co.uk MI2BV24H4","31.32","SEN Sensory Inclusion","5969","Equipment - Purchase","01/02/2019"
"Wolverhampton City Council","http://opendatacommunities.org/id/metropolitan-district-council/wolverhampton","AMZN Mktp UK MI5SH24D4","14.15","SEN Sensory Inclusion","5942","Equipment - Purchase","01/02/2019"
"Wolverhampton City Council","http://opendatacommunities.org/id/metropolitan-district-council/wolverhampton","Amazon.co.uk MI28N7F04","42.63","SEN Sensory Inclusion","5969","Equipment - Purchase","01/02/2019"
"Wolverhampton City Council","http://opendatacommunities.org/id/metropolitan-district-council/wolverhampton","Amazon.co.uk MI1RO6434","13.99","SEN Sensory Inclusion","5969","Equipment - Purchase","01/02/2019"
"Wolverhampton City Council","http://opendatacommunities.org/id/metropolitan-district-council/wolverhampton","Cross Country Trains","16.00","Head of Strategic Commissioning � People","4112","Public Transport","01/02/2019"
"Wolverhampton City Council","http://opendatacommunities.org/id/metropolitan-district-council/wolverhampton","AMZN Mktp UK MI1HF2434","30.95","Technical Support","5942","Equipment - Purchase","01/02/2019"
"Wolverhampton City Council","http://opendatacommunities.org/id/metropolitan-district-council/wolverhampton","HALFORDS 0775","31.58","Independant Living Services","5940","Cleaning Supplies and Materials","01/02/2019"
"Wolverhampton City Council","http://opendatacommunities.org/id/metropolitan-district-council/wolverhampton","AMZN Mktp UK MI9AF1414","4.79","Inclusion Support","5942","Stationery","01/02/2019"
"Wolverhampton City Council","http://opendatacommunities.org/id/metropolitan-district-council/wolverhampton","Virgin Trains","144.20","City Centre","4112","Services - Fees and Charges","01/02/2019"
"Wolverhampton City Council","http://opendatacommunities.org/id/metropolitan-district-council/wolverhampton","Virgin Trains","73.10","City Centre","4112","Services - Fees and Charges","01/02/2019"
"Wolverhampton City Council","http://opendatacommunities.org/id/metropolitan-district-council/wolverhampton","VW VAN CENTRE","27.37","Fleet Management","5511","Equipment - Purchase","01/02/2019"
"Wolverhampton City Council","http://opendatacommunities.org/id/metropolitan-district-council/wolverhampton","Trainline","85.52","Legal Services","4112","Public Transport","01/02/2019"
"Wolverhampton City Council","http://opendatacommunities.org/id/metropolitan-district-council/wolverhampton","AMZN Mktp UK MI4DD34W4","93.66","SEN Early Years Team","5942","Equipment - Purchase","01/02/2019"
"Wolverhampton City Council","http://opendatacommunities.org/id/metropolitan-district-council/wolverhampton","AMZN Mktp UK MI29164B4","59.05","SEN Early Years Team","5942","Equipment - Purchase","01/02/2019"
"Wolverhampton City Council","http://opendatacommunities.org/id/metropolitan-district-council/wolverhampton","J VAN VLIET BIRMINGHAM","70.95","Creative Studies Delivery Area","5399","Materials for resale","01/02/2019"
"Wolverhampton City Council","http://opendatacommunities.org/id/metropolitan-district-council/wolverhampton","ASDA SUPERSTORE","35.48","Winter Maintenance","5411","Provisions (Not for resale)","01/02/2019"
"Wolverhampton City Council","http://opendatacommunities.org/id/metropolitan-district-council/wolverhampton","AMZN Mktp UK MI9DV6LC4","7.87","Members Expenses","5942","Equipment - Purchase","01/02/2019"
"Wolverhampton City Council","http://opendatacommunities.org/id/metropolitan-district-council/wolverhampton","Amazon.co.uk MI6VB04A4","50.00","Mayor's Charity","5969","Gratuities","01/02/2019"
"Wolverhampton City Council","http://opendatacommunities.org/id/metropolitan-district-council/wolverhampton","SAINSBURYS SACAT (2340","2.00","Key to Inspiration","5411","Provisions (Not for resale)","01/02/2019"
"Wolverhampton City Council","http://opendatacommunities.org/id/metropolitan-district-council/wolverhampton","CardtronicsUK","250.00","Private Hire Vehicles","6011","Financial Assistance In Exceptional Circ","01/02/2019"
"Wolverhampton City Council","http://opendatacommunities.org/id/metropolitan-district-council/wolverhampton","CardtronicsUK","250.00","Private Hire Vehicles","6011","Financial Assistance In Exceptional Circ","01/02/2019"
"Wolverhampton City Council","http://opendatacommunities.org/id/metropolitan-district-council/wolverhampton","CardtronicsUK","250.00","Private Hire Vehicles","6011","Financial Assistance In Exceptional Circ","01/02/2019"
"Wolverhampton City Council","http://opendatacommunities.org/id/metropolitan-district-council/wolverhampton","CardtronicsUK","250.00","Private Hire Vehicles","6011","Financial Assistance In Exceptional Circ","01/02/2019"
"Wolverhampton City Council","http://opendatacommunities.org/id/metropolitan-district-council/wolverhampton","HACHETTE UK DISTRIBUTI","216.45","Art Gallery","5965","Equipment - Purchase","01/02/2019"
"Wolverhampton City Council","http://opendatacommunities.org/id/metropolitan-district-council/wolverhampton","FACEBK V3PSFJ2H52","137.00","The Little Civic","7311","Marketing \ Non-staff advertising","01/02/2019"
"Wolverhampton City Council","http://opendatacommunities.org/id/metropolitan-district-council/wolverhampton","JACKS CAFE & BAR LTD","4.90","Youth Offending Team","5812","Educ Trips, Holidays, Outings, Activity","01/02/2019"
"Wolverhampton City Council","http://opendatacommunities.org/id/metropolitan-district-council/wolverhampton","AMZN Mktp UK MI1KO74J4","66.64","Bradley Resource Centre","5942","Books","01/02/2019"
"Wolverhampton City Council","http://opendatacommunities.org/id/metropolitan-district-council/wolverhampton","AMZN Mktp UK MI3DO0414","34.96","Bradley Resource Centre","5942","Books","01/02/2019"
"Wolverhampton City Council","http://opendatacommunities.org/id/metropolitan-district-council/wolverhampton","Amazon.co.uk MI5Q034W4","8.32","Adoption and Residence Team & Allowances","5969","Equipment - Purchase","01/02/2019"
"Wolverhampton City Council","http://opendatacommunities.org/id/metropolitan-district-council/wolverhampton","Amazon.co.uk MI6T01464","49.17","Adoption and Residence Team & Allowances","5969","Equipment - Purchase","01/02/2019"
"Wolverhampton City Council","http://opendatacommunities.org/id/metropolitan-district-council/wolverhampton","MONARCH CLEANERS LTD","223.80","Towers Outdoor Education Centre","7216","Laundry Expenses","01/02/2019"
"Wolverhampton City Council","http://opendatacommunities.org/id/metropolitan-district-council/wolverhampton","NORTHERN POTTERY LTD","115.61","Towers Outdoor Education Centre","5999","Fixtures and Fittings - Purchases","01/02/2019"
"Wolverhampton City Council","http://opendatacommunities.org/id/metropolitan-district-council/wolverhampton","CHEMSOL CYMRU LTD","324.53","Towers Outdoor Education Centre","5199","Fixtures and Fittings - Purchases","01/02/2019"
"Wolverhampton City Council","http://opendatacommunities.org/id/metropolitan-district-council/wolverhampton","OUTDOOR EDUCATION ADVI","260.00","Towers Outdoor Education Centre","5734","Equipment - Purchase","01/02/2019"
"Wolverhampton City Council","http://opendatacommunities.org/id/metropolitan-district-council/wolverhampton","C L JONES HEAD OFFICE","112.87","Towers Outdoor Education Centre","5211","Fixtures and Fittings - Purchases","01/02/2019"
"Wolverhampton City Council","http://opendatacommunities.org/id/metropolitan-district-council/wolverhampton","000002200500000","250.00","CIN/CP Social Work Unit - Area 6","6011","No Recourse to Public Funds","01/02/2019"
"Wolverhampton City Council","http://opendatacommunities.org/id/metropolitan-district-council/wolverhampton","FACEBK  FJ9E8KEAR2","369.57","Communications & Marketing - General","7311","Marketing \ Non-staff advertising","01/02/2019"
"Wolverhampton City Council","http://opendatacommunities.org/id/metropolitan-district-council/wolverhampton","FACEBK  D57YBH6A82","43.29","WV Active Marketing","7311","Marketing \ Non-staff advertising","01/02/2019"
"Wolverhampton City Council","http://opendatacommunities.org/id/metropolitan-district-council/wolverhampton","CardtronicsUK","50.00","Headstart Phase 3","6011","Financial Assistance In Exceptional Circ","01/02/2019"
"Wolverhampton City Council","http://opendatacommunities.org/id/metropolitan-district-council/wolverhampton","POST OFFICE COUNTER","9.91","Cemeteries","9402","Comms - Postage","01/02/2019"
"Wolverhampton City Council","http://opendatacommunities.org/id/metropolitan-district-council/wolverhampton","DUDLEY MBC  INTERN","15.50","LAC Team","8999","Services - Fees and Charges","01/02/2019"
"Wolverhampton City Council","http://opendatacommunities.org/id/metropolitan-district-council/wolverhampton","WWW.DERBY.GOV.UK","11.00","LAC Team","9399","Services - Fees and Charges","01/02/2019"
"Wolverhampton City Council","http://opendatacommunities.org/id/metropolitan-district-council/wolverhampton","CITY OF WOLVERHAMPTON","25.00","LAC Team","9399","Services - Fees and Charges","01/02/2019"
"Wolverhampton City Council","http://opendatacommunities.org/id/metropolitan-district-council/wolverhampton","AMZN Mktp UK MI3UD1L94","28.99","EIP Locality 5","5942","Equipment - Purchase","01/02/2019"
"Wolverhampton City Council","http://opendatacommunities.org/id/metropolitan-district-council/wolverhampton","FACEBK 69SHVHAD22","299.12","Service Wide","7311","Marketing \ Non-staff advertising","01/02/2019"
